Cogmind - Beta 11 @@@ ROGUE MODE // 2022.04.15 @ 19:02:48 Player: aoemica Result: Escaped singularity! Performance ------------- Evolutions (9) 4500 Regions Visited (34) 6800 Robots Destroyed (727) 3635 Value Destroyed (44971) 44971 Prototype IDs (303) 6060 Alien Tech Used (10) 2000 Bonus (52871) 52871 TOTAL SCORE: 120837 Bonus ------- High Alert Combat Kills 8168 Follower Combat Kills 3148 Entered Garrisons 1600 Used RIF Installer 4000 Aligned with FarCom 300 Met Sigix 2000 Destroyed MAIN.C Guards 500 Met MAIN.C 5000 Destroyed MAIN.C Shell 5000 Destroyed MAIN.C 10000 Met Architect 300 Destroyed A6 400 Destroyed Architect 15000 Win 3000 Friendly Fire -5545 Cogmind --------- Core Integrity 923/1600 Matter 290/300 Energy 98/100 System Corruption 0% Temperature Cool (0) Movement Core (50) Location Near Former Tau Ceti IV Parts ------- > --- POWER (4) -------- (None) > --- PROPULSION (6) --- (None) > --- UTILITY (12) ----- (None) > --- WEAPON (3) ------- (None) > --- INVENTORY (5) ---- Biometal Heavy Treads Core Stripper Peak State ------------ > --- POWER ------------ Improved Quantum Reactor Zero-point Reactor Vortex Chain Reactor > --- PROPULSION ------- Enhanced Armored Heavy Treads Advanced Heavy Siege Treads Experimental Biometal Medium Treads Experimental Biometal Medium Treads > --- UTILITY ---------- Huge Storage Unit Experimental Terrain Scan Processor Experimental Targeting Computer Experimental Targeting Computer Experimental Core Analyzer Improved Armor Integrity Analyzer Advanced Weapon Cycler Advanced Phase Shifter Experimental Weapon Shielding Heavy Regenerative Plating AEGIS Remote Shield > --- WEAPON ----------- Improved Potential Cannon Graviton Cannon > --- INVENTORY -------- Zero-point Reactor Advanced Heavy Treads Biometal Heavy Treads Advanced Power Amplifier Advanced Power Amplifier Experimental Energy Well Experimental Energy Well Superbattery Experimental Matter Compressor Experimental Optical Array Long-range Terrain Scanner Precision Energy Filter Advanced Force Field Transdimensional Reconstructor High-powered Transdimensional Reconstructor Compact HERF Cannon Cooled Nova Cannon Heavy Hardcell Cannon Z-bomb Delivery System Field Lobotomy Kit Core Stripper [Rating: 245] Favorites ----------- Power Antimatter Reactor Engine Deuterium Engine Power Core Micro Fission Core Reactor Antimatter Reactor Propulsion Heavy Treads Treads Heavy Treads Leg Aluminum Leg Wheel Armored Wheel Utility Huge Storage Unit Device Improved Cooling System Storage Huge Storage Unit Processor Advanced Targeting Computer Hackware Relay Coupler [NC] Protection Heavy Regenerative Plating Artifact Phase Armor Weapon EM Pulse Cannon Energy Gun Beamcaster Energy Cannon EM Pulse Cannon Ballistic Gun Light Assault Rifle Ballistic Cannon Graviton Cannon Launcher Rocket Launcher Special Weapon Advanced Remote Datajack Impact Weapon Core Stripper Slashing Weapon Ripper Piercing Weapon Lance Special Melee Weapon Datajack Build | -11 -10 -10 -10 -9 -8 -8 -8 -8 -7 -7 -7 -7 -6 -6 -6 -6 -5 -5 -5 -5 -4 -4 -4 -4 -3 -3 -3 -2 -2 -2 -2 -1 -1 -1 ------- Run | Scr Mat Min Exi Min Mat Gar Mat Gar Fac Was Fac Gar Fac Was Fac Gar Fac Was Fac Gar Fac Was Fac Gar Res Tes Gar Res Qua Sec Gar Acc Com Ac0 Slots Evolved 18 | . . . . . 4 . . . 2 . . . 2 . . . 2 . . . 2 . . . 2 . . 2 . . . 2 . . Power 3 | . . . . . . . . . . . . . . . . . 1 . . . 1 . . . . . . . . . . 1 . . Propulsion 4 | . . . . . 1 . . . 1 . . . . . . . . . . . . . . . 2 . . . . . . . . . Utility 10 | . . . . . 3 . . . 1 . . . 2 . . . 1 . . . 1 . . . . . . 2 . . . . . . Weapon 1 | . . . . . . . . . . . . . . . . . . . . . . . . . . . . . . . . 1 . . Parts Attached 1003 | . 14 9 3 8 44 13 18 . 18 9 4 20 12 5 36 40 39 16 23 36 28 9 4 7 59 65 25 61 76 110 14 54 94 30 Power 54 | . 1 . . . 3 1 1 . . 1 . . . 1 . 1 3 1 1 . 5 . . . 1 3 3 2 2 3 . 12 7 2 Engine 8 | . 1 . . . 3 1 1 . . . . . . . . . 2 . . . . . . . . . . . . . . . . . Core 2 | . . . . . . . . . . . . . . . . . 1 . . . 1 . . . . . . . . . . . . . Reactor 44 | . . . . . . . . . . 1 . . . 1 . 1 . 1 1 . 4 . . . 1 3 3 2 2 3 . 12 7 2 Propulsion 84 | . 5 1 . 2 15 2 3 . 3 2 . . . 2 2 7 4 4 . . . 2 . . 5 3 1 2 2 4 1 4 6 2 Treads 82 | . 5 1 . 2 15 2 3 . 3 2 . . . 2 2 5 4 4 . . . 2 . . 5 3 1 2 2 4 1 4 6 2 Leg . | . . . . . . . . . . . . . . . . . . . . . . . . . . . . . . . . . . . Wheel 2 | . . . . . . . . . . . . . . . . 2 . . . . . . . . . . . . . . . . . . Hover . | . . . . . . . . . . . . . . . . . . . . . . . . . . . . . . . . . . . Flight . | . . . . . . . . . . . . . . . . . . . . . . . . . . . . . . . . . . . Utility 483 | . 3 2 1 . 15 2 1 . 4 4 2 4 7 . 5 12 12 9 10 16 15 6 4 5 33 46 9 50 55 52 5 34 38 22 Device 330 | . 2 2 1 . 8 1 . . 2 3 2 . 3 . 1 6 8 6 5 9 8 1 4 4 22 27 7 32 34 45 5 34 28 20 Storage 20 | . 1 . . . 2 . . . . . . . . . . 1 2 . 3 1 1 . . . . 2 . 1 2 1 . . 3 . Processor 9 | . . . . . 2 . . . . . . . . . . . . . . . . . . . . . . 1 1 2 . . 3 . Hackware 33 | . . . . . . . 1 . . . . 3 1 . 2 2 1 1 . 6 . . . 1 2 3 2 2 2 2 . . 2 . Protection 80 | . . . . . 3 1 . . 2 1 . 1 3 . 2 3 1 2 2 . 6 5 . . 9 14 . 14 6 1 . . 2 2 Artifact 11 | . . . . . . . . . . . . . . . . . . . . . . . . . . . . . 10 1 . . . . Weapon 382 | . 5 6 2 6 11 8 13 . 11 2 2 16 5 2 29 20 20 2 12 20 8 1 . 2 20 13 12 7 17 51 8 4 43 4 Energy Gun 19 | . . . . 2 3 1 . . 2 . . . . . . . . . 1 1 . . . . . . . . . 1 . . 8 . Energy Cannon 239 | . 3 4 1 2 4 5 7 . 7 1 1 8 2 1 21 11 15 1 7 14 6 1 . 2 15 13 8 5 14 29 5 3 21 2 Ballistic Gun 1 | . . . . . . . . . . . . . . . . . . . . . . . . . . . . . . 1 . . . . Ballistic Cannon 8 | . . . . . . . . . . . . . . . . . . . . . . . . . . . . . 1 2 . . 5 . Launcher 19 | . . 1 . 1 3 1 4 . . . . 1 1 . 2 . 1 . . . . . . . 3 . 1 . . . . . . . Special Weapon 64 | . . . . . . . . . . . . 6 2 . 5 7 3 1 2 5 2 . . . 2 . 3 2 1 11 2 1 8 1 Impact Weapon 11 | . . . . . . . . . . . . . . . . . . . . . . . . . . . . . 1 7 1 . 1 1 Slashing Weapon 13 | . 2 1 . 1 . . . . 2 1 1 1 . 1 1 2 . . . . . . . . . . . . . . . . . . Piercing Weapon 3 | . . . . . . . . . . . . . . . . . 1 . 2 . . . . . . . . . . . . . . . Special Melee Weapon 5 | . . . 1 . 1 1 2 . . . . . . . . . . . . . . . . . . . . . . . . . . . Unidentified Prototypes 28 | . . . . . . . . . . . . . . . 1 . . . . . 1 . . . 1 1 1 . 10 7 . . 6 . Parts Lost 31 | . 1 . . . 4 1 . . 1 . . . . . . 4 3 . . . . . . . 1 2 1 . . . . 1 7 5 Power 8 | . . . . . . . . . . . . . . . . 1 2 . . . . . . . . 1 . . . . . . 4 . Propulsion 3 | . . . . . 2 . . . . . . . . . . . . . . . . . . . . . . . . . . . . 1 Utility 11 | . . . . . 1 1 . . . . . . . . . 1 1 . . . . . . . 1 1 . . . . . 1 2 2 Weapon 9 | . 1 . . . 1 . . . 1 . . . . . . 2 . . . . . . . . . . 1 . . . . . 1 2 Highest Loss Streak 3 | . 1 . . . 2 1 . . 1 . . . . . . 2 1 . . . . . . . 1 1 1 . . . . 1 3 3 To Critical Strikes 1 | . . . . . . . . . . . . . . . . . . . . . . . . . . . . . . . . . . 1 Average Slot Usage (%) 86 | . 98 100 100 100 99 98 99 100 99 91 84 81 79 85 90 92 97 74 78 77 75 77 78 77 79 86 88 83 78 77 81 81 80 79 Engine 2 | . 14 14 14 14 9 9 9 9 7 6 . . . . . . 3 6 2 . . . . . . . . . . . . . . . Reactor 8 | . . . . . . . . . . . 7 7 6 6 6 6 3 3 7 11 12 15 15 15 14 13 13 13 9 8 13 14 15 12 Treads 16 | . 12 28 28 28 26 27 27 27 29 22 15 15 13 12 17 18 18 13 11 11 10 10 10 10 18 19 18 13 13 13 13 11 12 16 Device 16 | . 13 14 14 14 14 14 18 18 15 15 15 15 14 20 16 13 22 13 18 12 18 20 21 18 18 16 21 20 21 20 19 20 14 12 Storage 6 | . 14 14 14 14 9 9 9 9 7 7 7 7 6 6 6 6 5 5 5 5 5 5 5 5 4 4 4 4 4 4 4 4 4 4 Processor 8 | . . . . . 17 12 9 9 7 7 7 7 6 6 6 6 5 5 5 5 5 5 5 5 4 4 4 8 8 9 13 12 17 20 Hackware 6 | . . . . . . . 3 9 7 7 7 4 3 6 9 19 5 5 5 11 5 5 5 6 4 8 6 6 6 7 5 4 1 . Protection 5 | . . . . . 2 7 5 . 7 7 7 7 14 13 13 6 10 5 5 5 5 4 5 5 4 8 9 7 . 3 4 4 6 7 Energy Cannon 8 | . 14 26 21 20 12 15 17 18 6 10 14 12 9 6 12 11 9 5 5 8 5 5 5 4 4 4 6 5 3 2 3 7 6 7 Special Weapon 1 | . . . . . . . . . . . . . 3 . . . . 5 3 2 4 5 5 5 3 4 1 2 3 3 3 4 . . Naked Turns 3 | . . . . . . . . . . . . . . . . . . . . . . . . . . . . . . . . . . 3 Heaviest Build 236 | 12 32 32 32 34 101 108 110 107 114 122 123 130 131 129 129 128 144 169 182 158 199 199 173 174 202 197 190 227 216 210 219 236 223 228 Greatest Support 250 | 20 40 40 40 40 60 60 60 60 80 140 140 140 140 140 140 110 124 140 140 140 140 140 140 140 194 194 200 215 240 250 210 240 240 240 Greatest Overweight (x) 39 | . . . . . 1 1 1 1 1 1 . . . . 1 39 5 1 1 1 1 1 1 1 1 1 1 1 1 . 1 1 1 . Average Overweight (x) . | . . . . . . 1 1 1 1 . . . . . . 3 2 . 1 . 1 1 1 1 . . . . . . . . . . Largest Inventory Capacity 25 | . 15 15 15 15 25 25 25 25 25 25 25 25 25 25 25 25 25 25 25 25 25 25 25 25 25 25 25 25 25 25 25 25 25 25 Average Capacity 23 | . 10 15 15 15 19 25 25 25 25 25 25 25 25 25 25 25 25 25 25 25 25 25 25 25 25 25 25 25 25 25 25 25 25 24 Most Carried 25 | . 15 15 15 15 23 25 25 25 25 25 25 25 25 25 25 25 25 25 25 25 25 25 25 25 25 25 25 25 25 25 25 25 25 25 Average Carried 23 | . 9 14 14 14 19 23 24 24 24 24 25 23 24 24 24 24 24 24 24 24 24 24 25 24 24 24 24 24 24 24 23 24 24 24 Final Capacity 25 | 8 15 15 15 15 25 25 25 25 25 25 25 25 25 25 25 25 25 25 25 25 25 25 25 25 25 25 25 25 25 25 25 25 25 5 Final Carried 25 | 6 15 15 15 15 23 24 25 25 25 25 25 25 25 25 25 25 25 25 25 25 25 25 25 25 25 25 25 25 25 25 25 25 25 4 Class Distribution -------------------- 47% | Bothacker-Mutant 26% | Botlord-Mutant 11% | Generator-Mutant 6% | Mutant 6% | Scavenger-Mutant Dominant Class ---------------- Mutant | -10/Materials Mutant | -10/Mines Mutant | -10/Exiles Scavenger-Mutant | -9/Mines Scavenger-Mutant | -8/Materials Scavenger-Mutant | -8/Garrison Bothacker-Mutant | -8/Materials Bothacker-Mutant | -8/Garrison Bothacker-Mutant | -7/Factory Bothacker-Mutant | -7/Waste Bothacker-Mutant | -7/Factory Bothacker-Mutant | -7/Garrison Bothacker-Mutant | -6/Factory Bothacker-Mutant | -6/Waste Bothacker-Mutant | -6/Factory Botlord-Mutant | -6/Garrison Botlord-Mutant | -5/Factory Botlord-Mutant | -5/Waste Botlord-Mutant | -5/Factory Bothacker-Mutant | -5/Garrison Botlord-Mutant | -4/Factory Bothacker-Mutant | -4/Waste Bothacker-Mutant | -4/Factory Botlord-Mutant | -4/Garrison Bothacker-Mutant | -3/Research Generator-Mutant | -3/Testing Botlord-Mutant | -3/Garrison Botlord-Mutant | -2/Research Bothacker-Mutant | -2/Quarantine Bothacker-Mutant | -2/Section 7 Bothacker-Mutant | -2/Garrison Bothacker-Mutant | -1/Access Generator-Mutant | -1/Command Generator-Mutant | -1/Access_0 Resources | -11 -10 -10 -10 -9 -8 -8 -8 -8 -7 -7 -7 -7 -6 -6 -6 -6 -5 -5 -5 -5 -4 -4 -4 -4 -3 -3 -3 -2 -2 -2 -2 -1 -1 -1 ----------- Run | Scr Mat Min Exi Min Mat Gar Mat Gar Fac Was Fac Gar Fac Was Fac Gar Fac Was Fac Gar Fac Was Fac Gar Res Tes Gar Res Qua Sec Gar Acc Com Ac0 Matter Collected 12370 | 200 170 123 . 104 506 181 242 10 167 70 60 275 159 65 441 545 431 193 282 777 336 167 25 158 731 891 407 573 972 1069 172 261 1462 145 Remotely . | . . . . . . . . . . . . . . . . . . . . . . . . . . . . . . . . . . . Salvage Created 44827 | . 925 324 . 168 2143 632 1739 292 1163 334 . 559 61 . 1088 2187 1986 914 1205 791 1286 77 129 659 2449 1322 1476 2712 3083 4298 922 3392 5171 1340 Parts 1879 | . 52 23 . 10 92 32 86 13 54 19 . 19 8 . 36 58 88 14 54 27 74 2 5 16 99 55 65 107 136 194 44 165 199 33 Haulers Intercepted 13 | . 2 . . . 3 . 2 . 2 . . . . . 2 . . . . . . . 1 . . . . . . . . 1 . . Recyclers Shooed 28 | . 2 . . . 2 . 3 . 2 . . . . . 2 . 2 . 1 . 1 . . . . 1 . 2 1 . . . 9 . Parts Field Recycled . | . . . . . . . . . . . . . . . . . . . . . . . . . . . . . . . . . . . Retrieved Matter . | . . . . . . . . . . . . . . . . . . . . . . . . . . . . . . . . . . . Parts Self-Destructed . | . . . . . . . . . . . . . . . . . . . . . . . . . . . . . . . . . . . Prevented . | . . . . . . . . . . . . . . . . . . . . . . . . . . . . . . . . . . . Kills | -11 -10 -10 -10 -9 -8 -8 -8 -8 -7 -7 -7 -7 -6 -6 -6 -6 -5 -5 -5 -5 -4 -4 -4 -4 -3 -3 -3 -2 -2 -2 -2 -1 -1 -1 ------- Run | Scr Mat Min Exi Min Mat Gar Mat Gar Fac Was Fac Gar Fac Was Fac Gar Fac Was Fac Gar Fac Was Fac Gar Res Tes Gar Res Qua Sec Gar Acc Com Ac0 Combat Hostiles Destroyed 594 | . 11 15 . 3 36 15 31 5 12 . . 12 3 . 12 26 29 4 17 12 26 . . 9 33 16 20 33 36 50 13 38 55 22 Melee 14 | . 4 . . . 1 . . . 2 . . 1 . . . 1 . . 4 . . . . . . . . . . . . . 1 . Guns 30 | . 5 . . . 7 . . . . . . . . . . . . . . . . . . . . . . . . . . . 18 . Cannons 336 | . 2 14 . 3 20 9 15 4 9 . . 7 . . 11 15 17 4 4 9 22 . . 4 16 8 8 22 17 29 8 25 24 10 AOE 49 | . . . . . 5 3 10 . . . . 2 3 . . 1 4 . . . . . . . 4 . 4 . 3 . . . . 10 Classes Destroyed 27 | . 7 1 . . 6 1 2 . 1 1 . . . . 1 . . 1 . . . . . . 1 . 1 . 2 1 . . 1 . Worker 27 | . 4 1 . 1 1 . 2 . . . . . . . . . 4 . 2 . . . . . 1 1 . 2 . . . 1 7 . Builder 9 | . . . . . 1 . 1 . . . . . . . . . 4 . 1 . . . . . . . . . . 2 . . . . Tunneler 2 | . . . . . . . 1 . . . . . . . . . . . . . 1 . . . . . . . . . . . . . Hauler 13 | . 2 . . . 3 . 2 . 2 . . . . . 2 . . . . . . . 1 . . . . . . . . 1 . . Recycler 32 | . 3 . . 2 5 . 2 . 5 . . . . . . . 1 . . . . . . . . . . 1 2 1 . 2 8 . Mechanic 1 | . . . . . . . . . 1 . . . . . . . . . . . . . . . . . . . . . . . . . Operator 3 | . 2 . . . . . . . . . . . . . . . . . . . . . . . . . . . . . . . 1 . Watcher 28 | . 2 . . . 4 . 2 . . . . . 1 . . 1 . . . . . . . . 3 1 . 2 . 5 . 1 6 . Swarmer 93 | . 3 9 . 3 6 4 3 . 3 . . 4 3 . . . . . . 2 8 . . 3 4 . . 5 4 5 4 5 15 . Cutter 4 | . . . . . . . . . . . . . . . . . . . . . . . . . . . 4 . . . . . . . Saboteur 1 | . . . . . . . . . . . . . . . . . . . . . . . . . . . . . . . . . 1 . Grunt 198 | . 8 4 . . 16 6 15 2 5 . . 7 . . 10 20 12 . 10 8 2 . . 5 7 3 11 13 10 5 2 6 11 . Brawler 16 | . . . . . . 1 3 . . . . 1 . . . . 3 . 1 . . . . . 1 . 2 1 . 1 . 1 1 . Duelist 17 | . . . . . 1 . 4 . . . . . . . . 3 . . . 2 . . . . 1 2 1 . . . . . 3 . Protector 3 | . . . . . . . 1 . . . . . . . . . . . . . . . . . . . . . 1 . . . 1 . Sentry 32 | . . . . . 8 4 4 2 1 . . . . . . . 4 . . . 1 . . . . . 2 . . 3 . 1 2 . Specialist 9 | . . . . . 2 . . . . . . . . . . . 1 . . . . . . . 4 . . 2 . . . . . . Hunter 66 | . . . . . 2 . 1 1 . . . . . . . 3 4 . 2 1 5 . . 2 6 4 . 2 2 10 5 10 6 . Programmer 111 | . . . . . 1 . . . 3 . . 1 . . 2 . 5 . 4 . 10 . . . 9 8 1 10 9 19 2 15 12 . Heavy 2 | . . . . . . . . . . . . . . . . . . . . . . . . . 1 . . . . 1 . . . . Behemoth 3 | . . . . . . . . . . . . . . . 1 1 . . . . . . . . . . . . . 1 . . . . Compactor 4 | . . . . . . . . . . . . . . . . . . 4 . . . . . . . . . . . . . . . . Quarantine Guard 5 | . . . . . . . . . . . . . . . . . . . . . . . . . . . . . 5 . . . . . S7 Guard 3 | . . . . . . . . . . . . . . . . . . . . . . . . . . . . . . 3 . . . . M Guard 2 | . . . . . . . . . . . . . . . . . . . . . . . . . . . . . . . . . 2 . Enhanced Grunt 14 | . . . . . . . . . . . . . . . . . . . . . . . . . . . . . . . . . . 14 Enhanced Hunter 6 | . . . . . . . . . . . . . . . . . . . . . . . . . . . . . . . . . . 6 Lightning 3 | . . . . . . . . . . . . . . . . . . . . . . . . . . . . . 3 . . . . . Combat Programmer 2 | . . . . . . . . . . . . . . . . . . . . . . . . . . . . . . . . . 2 . Executioner 2 | . . . . . . . . . . . . . . . . . . . . . . . . . . . . . . 2 . . . . Alpha 7 1 | . . . . . . . . . . . . . . . . . . . . . . . . . . . . . 1 . . . . . Fortress 1 | . . . . . . . . . . . . . . . . . . . . . . . . . . . . . 1 . . . . . Assembled 2 | . . 2 . . . . . . . . . . . . . . . . . . . . . . . . . . . . . . . . Martyr 10 | . . . . . . . . . . 7 . . . . 1 . . . . . . 1 1 . . . . . . . . . . . Best Kill Streak 16 | . 4 4 . 4 7 4 7 2 5 . . 4 3 . 4 4 16 2 11 4 6 . 1 5 5 3 4 6 12 5 3 9 10 3 Combat Bots Only 12 | . 3 3 . 3 7 4 6 2 4 . . 4 3 . 4 4 9 2 9 4 5 . . 5 5 3 4 6 12 5 3 6 9 3 Max Kills in Single Turn 7 | . 1 1 . 1 2 2 4 1 1 1 . 2 2 . 1 1 7 1 1 1 1 1 1 1 4 1 4 1 3 1 1 1 2 2 Gunslinging . | . . . . . . . . . . . . . . . . . . . . . . . . . . . . . . . . . . . Exploded 4 | . . . . . 2 2 3 . . . . 2 2 . . 1 2 . . . . . . . 4 . 4 . 3 . . . . 2 Melee 1 | . 1 . . . 1 . . . 1 . . 1 . . . 1 . . 1 . . . . . . . . . . . . . 1 . Uniques/NPCs Destroyed 5 | . . . . . . . . . . . . . . . . . . . . . . . . . . . . . . . . . 2 3 MAIN.C Shell (-1/Command) MAIN.C (-1/Command) A6 (-1/Access_0) A5 (-1/Access_0) Architect (-1/Access_0) Combat | -11 -10 -10 -10 -9 -8 -8 -8 -8 -7 -7 -7 -7 -6 -6 -6 -6 -5 -5 -5 -5 -4 -4 -4 -4 -3 -3 -3 -2 -2 -2 -2 -1 -1 -1 -------- Run | Scr Mat Min Exi Min Mat Gar Mat Gar Fac Was Fac Gar Fac Was Fac Gar Fac Was Fac Gar Fac Was Fac Gar Res Tes Gar Res Qua Sec Gar Acc Com Ac0 Damage Taken 29194 | . 535 420 . 68 1533 403 696 58 548 . 98 300 64 . 520 1458 1391 . 701 765 612 . 24 281 2888 1286 625 1232 1639 1873 481 1567 3580 3548 Core 2231 | . 120 50 . 15 87 38 78 . 38 . 1 57 . . 55 71 96 . 41 29 16 . . 18 96 68 12 57 356 197 10 68 107 450 Absorbed by Shields 18180 | . . . . . 40 12 168 21 132 . 40 80 8 . 192 639 402 . 648 242 535 . 24 295 931 240 525 1102 1654 1957 503 1501 2822 3467 Reduced by Siege Mode 936 | . . . . . . . . . . . . . . . . 51 . . . 38 28 . . 19 225 17 12 86 107 121 9 46 155 22 Redirected to Core 352 | . . . . . . . . . . . . . . . . . . . . . . . . . . . . . 295 57 . . . . Redirected to Shielding 210 | . . . . . . . . . . . . . . . . . . . . . . . . . . . . . . . . . 48 162 Regen/Repaired (Parts) 4797 | . 141 . . . 112 . 230 106 112 . . . . . 73 . 70 . . . 210 . . . 427 . . . 236 802 141 395 1108 634 Core Remaining (%) 74 | 100 . . . 26 . . . 63 . . . 86 . . . 85 . . . 83 . . . 97 . . 86 . . . 57 . . 57 Volleys Fired 2561 | . 36 34 . 10 107 29 63 19 29 1 1 61 10 . 73 99 68 91 46 64 106 5 11 39 161 152 59 174 168 227 57 155 321 85 Largest 3 | . 2 2 . 2 2 2 2 2 2 1 2 2 2 . 2 2 2 1 2 2 1 1 1 1 1 1 1 1 1 1 1 2 3 1 Hottest 320 | . 120 120 . 120 135 126 126 126 128 63 126 128 126 . 148 150 180 90 150 190 100 90 90 90 100 113 113 120 120 200 120 214 320 200 Shots Fired 3203 | . 71 64 . 20 211 51 109 30 53 1 2 70 12 . 93 155 118 90 72 90 106 5 11 38 160 152 61 175 168 229 60 160 481 85 Gun 277 | . 36 . . . 55 1 . . 1 . . . . . . . . . . . . . . . . . . . . . . . 184 . Cannon 2687 | . 35 61 . 20 147 46 101 30 52 1 2 55 6 . 73 142 113 84 65 75 95 5 11 34 149 134 53 167 160 217 58 158 255 83 Launcher 38 | . . 3 . . 9 4 8 . . . . 2 3 . 2 . 3 . . . . . . . 2 . 2 . . . . . . . Special 201 | . . . . . . . . . . . . 13 3 . 18 13 2 6 7 15 11 . . 4 9 18 6 8 8 12 2 2 42 2 Kinetic 65 | . 30 . . . . . . . . . . . . . . . . . . . . . . . . . . . . . . . 35 . Thermal 1526 | . 41 61 . 20 202 1 . . 6 . . 6 1 . 34 20 33 84 3 23 50 5 11 11 83 99 3 103 98 144 19 84 198 83 Explosive 38 | . . 3 . . 9 4 8 . . . . 2 3 . 2 . 3 . . . . . . . 2 . 2 . . . . . . . Electromagnetic 1212 | . . . . . . 46 101 30 47 1 2 49 5 . 39 122 80 . 62 52 45 . . 23 66 35 50 64 62 73 39 74 45 . Slashing 184 | . . . . . . . . . . . . . . . . . . . . . . . . . . . . . . . . . 184 . Robot Hit Streak 61 | . 14 16 . 9 29 11 21 10 16 10 12 16 3 . 15 37 20 16 10 16 13 10 21 10 16 20 22 21 23 46 22 12 61 17 Robot Miss Streak 7 | . 4 3 . 3 2 1 2 1 1 . . 1 2 . 3 2 2 2 2 2 7 . . 4 5 3 2 4 4 2 4 5 4 1 Penetration Max 1 | . . . . . . . . . . . . . . . . . . . . . . . . . . . . . . . . . 1 . Secondary Targets 4 | . . . . . . . . . . . . . . . . . . . . . . . . . . . . . . . . . 4 . Max Gunslinging Chain 1 | . . . . . . . . . . . . . . . . . . . . . . . . . . . . . . . . . 1 . Capacitor 239 | . . . . . . . . . . . . . . . . . . . . 13 55 5 11 34 100 21 . . . . . . . . Shots Hit Robots 2309 | . 78 36 4 11 157 32 83 12 52 17 2 33 5 2 57 113 93 77 71 56 83 5 11 29 126 86 44 124 116 175 28 98 336 57 Core Hits 1029 | . 29 18 . 6 75 18 54 6 25 7 . 17 5 . 23 51 57 10 27 24 42 2 3 8 58 21 27 47 52 60 12 43 139 63 Critical Kills 18 | . . 1 . . 1 . . . . . . 1 . . . . . . . . . . . . 2 1 . 2 . 2 . . 7 1 Critical Parts Destroyed . | . . . . . . . . . . . . . . . . . . . . . . . . . . . . . . . . . . . Critical Strikes 56 | . . 1 . . 6 . 3 . 1 1 . 1 . . . 4 2 . 2 1 2 . . 2 3 1 1 2 4 4 . . 14 1 Burn 5 | . . . . . 5 . . . . . . . . . . . . . . . . . . . . . . . . . . . . . Meltdown 18 | . . 1 . . 1 . . . . . . 1 . . . . . . . . . . . . 2 1 . 2 . 2 . . 7 1 Blast 2 | . . . . . . . . . . . . . . . . . . . . . . . . . . . . . . . . . 2 . Corrupt 19 | . . . . . . . 3 . . . . . . . . 1 2 . . 1 2 . . 2 1 . 1 . 4 2 . . . . Sever 10 | . . . . . . . . . 1 1 . . . . . 3 . . . . . . . . . . . . . . . . 5 . Impale 2 | . . . . . . . . . . . . . . . . . . . 2 . . . . . . . . . . . . . . . Melee Attacks 168 | . 46 8 4 1 . 1 1 . 16 16 1 3 . 2 3 13 . . 27 . . . . . . . . . 1 9 . . 10 6 Kinetic 26 | . . . . . . . . . . . . . . . . . . . . . . . . . . . . . 1 9 . . 10 6 Impact . | . . . . . . . . . . . . . . . . . . . . . . . . . . . . . . . . . . . Slashing 109 | . 46 8 . 1 . . . . 16 16 1 3 . 2 3 13 . . . . . . . . . . . . . . . . . . Piercing 27 | . . . . . . . . . . . . . . . . . . . 27 . . . . . . . . . . . . . . . Sneak Attacks 40 | . 8 . 4 . . . 1 . 1 16 . 3 . 2 3 1 . . . . . . . . . . . . . 1 . . . . Combat Hostiles 3 | . . . . . . . . . . . . 2 . . . 1 . . . . . . . . . . . . . . . . . . Follow-up Attacks . | . . . . . . . . . . . . . . . . . . . . . . . . . . . . . . . . . . . Damage Inflicted 100413 | . 1717 794 . 203 3865 1427 3578 434 1610 1094 45 903 359 114 1565 4354 4526 2719 2452 1351 3222 169 380 988 5050 3345 1991 5487 5052 7463 1276 4844 13655 14381 Guns 5878 | . 158 . . . 934 . . . 22 . . . . . . . . . . . . . . . . . . . . . . . 4764 . Cannons 74311 | . 438 674 . 198 2165 843 2044 434 1088 2 45 536 126 . 1339 3363 3039 2719 1723 1351 3218 169 380 988 4719 3198 1659 5272 4614 7114 1276 4794 7479 7304 Explosions 13870 | . . 92 . . 709 584 1452 . 116 . . 187 233 . . 259 1461 . 84 . . . . . 310 80 332 76 438 . . . 570 6887 Melee 4972 | . 1041 . . . . . . . 336 1092 . 180 . 114 210 732 . . 539 . . . . . . . . . . 315 . . 223 190 Ramming 938 | . 80 28 . 5 57 . 82 . 48 . . . . . 16 . 26 . 106 . 4 . . . 21 67 . 139 . 34 . 50 175 . Kinetic 2121 | . 114 . . . . . . . . . . . . . . . . . . . . . . . . . . . . 315 . . 1502 190 Thermal 51565 | . 482 674 . 198 3099 185 310 . 250 . . 181 . . 468 883 1389 2719 84 254 2037 169 380 243 2412 2119 52 3116 2561 4491 342 2332 5944 14191 Explosive 4861 | . . 92 . . 709 399 1142 . . . . 187 233 . . . 1019 . . . . . . . 310 . 332 . 438 . . . . . Electromagnetic 31920 | . . . . . . 843 2044 434 976 2 45 355 126 . 871 2739 2092 . 1723 1097 1181 . . 745 2307 1159 1607 2232 2053 2623 934 2462 1270 . Impact . | . . . . . . . . . . . . . . . . . . . . . . . . . . . . . . . . . . . Slashing 8469 | . 1041 . . . . . . . 336 1092 . 180 . 114 210 732 . . . . . . . . . . . . . . . . 4764 . Piercing 539 | . . . . . . . . . . . . . . . . . . . 539 . . . . . . . . . . . . . . . Highest Corruption 12 | . . . . . . . . . . . . . . . 2 2 2 12 6 6 2 2 2 2 2 5 5 4 2 5 5 . 7 . Average Corruption 3 | . . . . . . . . . . . . . . . 2 1 1 7 5 5 1 2 2 2 1 2 5 2 1 3 5 . 3 . Corruption Purged 25 | . . . . . . . . . . . . . . . . 2 . 7 . 1 . . . . . . . 4 2 2 . . 7 . Corruption Blocked 39 | . . . . . . . . . . . . . . . . . . . . . . . . . . . . . . 39 . . . . Effects 486 | . . . . . . . . . . . . . . . 8 15 4 15 32 117 14 10 5 25 14 34 48 15 3 44 47 . 36 . Message Errors 126 | . . . . . . . . . . . . . . . 1 3 1 3 9 27 7 2 1 8 3 6 13 2 1 15 13 . 11 . Matter Fused 119 | . . . . . . . . . . . . . . . 2 5 1 5 6 30 3 4 1 6 5 11 8 1 1 11 12 . 7 . Heat Flow Errors 65 | . . . . . . . . . . . . . . . 1 1 1 1 4 11 1 2 2 5 2 5 9 3 1 6 4 . 6 . Energy Discharges 58 | . . . . . . . . . . . . . . . 1 3 1 1 6 19 2 1 1 2 1 3 5 2 . 4 4 . 2 . Parts Rejected 4 | . . . . . . . . . . . . . . . . . . 1 . . . . . . . . . 1 . 1 . . 1 . Data Loss (minor) 58 | . . . . . . . . . . . . . . . 2 2 . . 3 14 1 1 . 2 . 5 7 2 . 5 9 . 5 . Data Loss (major) 20 | . . . . . . . . . . . . . . . 1 1 . 2 1 5 . . . 1 1 2 3 2 . . . . 1 . Misfires 19 | . . . . . . . . . . . . . . . . . . . 2 6 . . . . . 1 2 1 . 2 3 . 2 . Alerts 8 | . . . . . . . . . . . . . . . . . . 1 . 2 . . . . 1 . 1 1 . . 2 . . . Weapon Failures 9 | . . . . . . . . . . . . . . . . . . 1 1 3 . . . 1 1 1 . . . . . . 1 . Overload Shots . | . . . . . . . . . . . . . . . . . . . . . . . . . . . . . . . . . . . Overflow Damage 3758 | . 96 . . 5 25 52 31 . 26 82 . . 53 39 93 12 224 . 48 . 75 . . 36 101 247 2 239 157 323 8 223 1043 518 Projectiles 2710 | . 31 . . 5 9 21 27 . 15 . . . 22 . 72 12 . . 5 . 75 . . 36 101 211 2 194 95 286 8 223 833 427 Explosions 641 | . . . . . 16 31 4 . . . . . 31 . . . 224 . . . . . . . . . . . 62 . . . 182 91 Melee 407 | . 65 . . . . . . . 11 82 . . . 39 21 . . . 43 . . . . . . 36 . 45 . 37 . . 28 . Knockbacks 13 | . 1 . . . . . . . . . . . . . . . . . 3 . . . . . . 1 . . . 1 . . 7 . Impact 6 | . 1 . . . . . . . . . . . . . . . . . 3 . . . . . . 1 . . . 1 . . . . Kinetic 7 | . . . . . . . . . . . . . . . . . . . . . . . . . . . . . . . . . 7 . Secondary . | . . . . . . . . . . . . . . . . . . . . . . . . . . . . . . . . . . . Self-Inflicted Damage 611 | . . 3 . . . 33 . . 16 . . 65 . . . 55 51 . 68 . . . . . 52 . 61 97 50 . . . . 60 Shots 15 | . . 1 . . . 2 . . 1 . . 2 . . . 1 1 . 1 . . . . . 1 . 2 1 1 . . . . 1 Rammed 54 | . 1 3 . 2 8 . 7 . 3 . . . . . 2 . 3 . 11 . 1 . . . 1 2 . 2 . 2 . 1 5 . Targets Rammed 100 | . 39 4 . 2 9 . 8 . 4 . . . . . 2 . 3 . 11 . 1 . . . 1 3 . 4 . 2 . 1 6 . Kicked 38 | . 38 . . . . . . . . . . . . . . . . . . . . . . . . . . . . . . . . . Crushed 8 | . . 1 . . 1 . 1 . 1 . . . . . . . . . . . . . . . . 1 . 2 . . . . 1 . Highest Temperature 348 | . 229 207 . 180 162 63 29 6 70 . 6 . . . 119 132 194 176 255 252 273 233 258 237 348 331 288 300 106 265 181 178 178 158 Average Temperature 86 | . 68 70 . 64 33 21 6 3 19 . 3 . . . 69 25 32 56 78 65 112 90 134 79 93 116 110 74 21 87 102 102 112 95 Received Heat Transfer 4083 | . 255 114 . . 512 174 308 24 126 . 20 106 . . 178 343 371 . 189 152 63 . . 62 351 30 110 116 100 80 20 44 235 . Effects 11 | . . . . . . . . . . . . . . . . . . . 1 . 2 . . . 2 5 . 1 . . . . . . Energy Bleed 5 | . . . . . . . . . . . . . . . . . . . 1 . . . . . 2 1 . 1 . . . . . . Interference 6 | . . . . . . . . . . . . . . . . . . . . . 2 . . . . 4 . . . . . . . . Siege Activations 88 | . . . . . . . . . . . . . . . . 1 . . . 6 5 . . 3 6 3 5 7 13 11 8 8 8 4 Total Turns 2696 | . . . . . . . . . . . . . . . . 38 . . . 394 151 . . 33 149 51 153 261 679 159 414 56 143 15 Longest Duration 394 | . . . . . . . . . . . . . . . . 38 . . . 207 100 . . 15 75 22 66 125 394 61 260 15 54 6 Robots Corrupted 142 | . . . . . . 3 7 1 1 . . 1 . . 1 9 8 . 9 3 4 . . 6 10 7 8 9 15 16 5 14 5 . Combat Hostiles 135 | . . . . . . 3 6 1 1 . . 1 . . . 9 8 . 9 3 4 . . 5 10 6 8 9 15 16 5 12 4 . Parts Fried 258 | . . . . . . 3 12 2 5 . . 4 . . 2 18 12 . 11 9 13 . . 7 21 9 6 25 34 24 7 17 17 . Impact Corruptions 5 | . . . . . . . . . . . . . . . . . . . 1 . . . . . . 1 . 2 . . . . 1 . Robots Melted 25 | . . 1 . . 3 . . . . . . 1 . . 1 . . . . . . . . . 4 2 . 2 . 2 . 1 7 1 Combat Hostiles 22 | . . 1 . . 3 . . . . . . 1 . . 1 . . . . . . . . . 3 2 . 2 . 2 . 1 5 1 Parts Melted 130 | . 1 8 . 1 23 . . . . . . . . . 2 1 1 . . . 4 1 . 4 18 9 1 8 . 12 1 9 22 4 Heat Transferred 43919 | . 1025 1369 . 407 6068 175 300 . 298 . . 222 . . 481 916 1262 2923 100 299 2125 185 407 259 3025 1973 37 2603 1864 3330 259 1591 4340 6076 Parts Sabotaged 1 | . . . . . . . . . . . . . . . . . . . . . . . . . 1 . . . . . . . . . Parts Stolen . | . . . . . . . . . . . . . . . . . . . . . . . . . . . . . . . . . . . Parts Stripped . | . . . . . . . . . . . . . . . . . . . . . . . . . . . . . . . . . . . Power Chain Reactions 14 | . . . . . . 2 3 . 2 . . . . . . 4 . . 1 . . . . . . 1 . 1 . . . . . . Missiles Intercepted 4 | . . . . . . . . . . . . . . . . . . . . . . . . . . . . . . . . . 4 . Alert | -11 -10 -10 -10 -9 -8 -8 -8 -8 -7 -7 -7 -7 -6 -6 -6 -6 -5 -5 -5 -5 -4 -4 -4 -4 -3 -3 -3 -2 -2 -2 -2 -1 -1 -1 ------- Run | Scr Mat Min Exi Min Mat Gar Mat Gar Fac Was Fac Gar Fac Was Fac Gar Fac Was Fac Gar Fac Was Fac Gar Res Tes Gar Res Qua Sec Gar Acc Com Ac0 Peak Influence 1567 | . 246 345 . 85 929 1198 1094 728 412 53 40 352 306 107 505 1096 1380 453 299 623 855 260 486 715 662 369 656 759 616 675 742 1057 1567 . Initial 588 | . . 19 . . . 566 583 568 382 53 . 28 184 107 . 305 575 443 177 202 326 260 . 340 396 293 120 369 143 179 400 444 588 . Average 432 | . 70 157 . 19 313 1010 811 670 214 22 5 285 262 74 254 730 786 397 139 477 487 130 174 659 338 147 435 398 280 365 587 655 883 . Maximum Alert Level 5 | . 1 1 . . 3 4 3 3 2 . . 1 1 . 2 3 4 2 1 2 3 1 2 3 2 1 2 3 2 2 3 3 5 . Low Security (%) 22 | . 92 74 . 100 55 . . . 46 100 100 9 23 100 30 . . . 77 . . 59 64 . 25 76 17 7 13 7 . . . . Level 1 26 | . 7 25 . . 17 . . . 53 . . 90 76 . 46 10 3 24 22 30 30 40 8 4 23 23 16 55 78 62 . 8 . . Level 2 27 | . . . . . 4 7 14 67 . . . . . . 22 33 59 75 . 69 57 . 26 58 51 . 65 30 8 29 73 45 9 . Level 3 15 | . . . . . 21 62 85 32 . . . . . . . 55 4 . . . 12 . . 36 . . . 6 . . 26 45 15 . Level 4 2 | . . . . . . 30 . . . . . . . . . . 32 . . . . . . . . . . . . . . . 8 . Level 5 6 | . . . . . . . . . . . . . . . . . . . . . . . . . . . . . . . . . 66 . High Security . | . . . . . . . . . . . . . . . . . . . . . . . . . . . . . . . . . . . Max Security . | . . . . . . . . . . . . . . . . . . . . . . . . . . . . . . . . . . . Squads Dispatched 111 | . 3 . . . 5 . 8 . 6 . . . 1 . 7 . 8 . 3 . 4 . 4 . 12 5 . 8 6 10 . 9 12 . Investigation 10 | . 2 . . . 1 . 1 . 1 . . . . . . . . . . . . . 1 . . . . 1 1 1 . 1 . . Extermination 45 | . . . . . . . . . 3 . . . . . 3 . 3 . 2 . 3 . 1 . 3 3 . 4 4 7 . 4 5 . Reinforcement 31 | . 1 . . . 4 . 2 . 2 . . . 1 . 3 . 1 . 1 . 1 . 1 . 3 1 . 2 1 2 . 2 3 . Assault 16 | . . . . . . . 2 . . . . . . . 1 . 1 . . . . . 1 . 3 1 . 1 . . . 2 4 . Garrison 9 | . . . . . . . 3 . . . . . . . . . 3 . . . . . . . 3 . . . . . . . . . Intercept . | . . . . . . . . . . . . . . . . . . . . . . . . . . . . . . . . . . . Searches Triggered 2 | . . . . . 2 . . . . . . . . . . . . . . . . . . . . . . . . . . . . . Construction Impeded 1 | . . . . . . . . . . . . . . . . . . . 1 . . . . . . . . . . . . . . . Haulers Reinforced 7 | . . . . . . . . . 1 . . . . . 2 . 1 . . . . . 1 . . . . . . 1 . 1 . . Active Scanning Responses . | . . . . . . . . . . . . . . . . . . . . . . . . . . . . . . . . . . . Cargo Convoy Interrupts 1 | . . . . . . . . . . . . . . . . . . . . . . . . . 1 . . . . . . . . . Alert ID Control Effect 15 | . . . . . . . . . . . . . . . 4 3 . . . 3 . . . 1 . 1 . . . 1 . 2 . . Stealth | -11 -10 -10 -10 -9 -8 -8 -8 -8 -7 -7 -7 -7 -6 -6 -6 -6 -5 -5 -5 -5 -4 -4 -4 -4 -3 -3 -3 -2 -2 -2 -2 -1 -1 -1 --------- Run | Scr Mat Min Exi Min Mat Gar Mat Gar Fac Was Fac Gar Fac Was Fac Gar Fac Was Fac Gar Fac Was Fac Gar Res Tes Gar Res Qua Sec Gar Acc Com Ac0 Distress Signals 44 | . 2 . . . 1 . 5 . 1 . . . . . . . . . 1 . 5 . . . 4 2 . 1 1 . . 3 18 . Communications Jammed 230 | . . . . . . . . . . . . . . . . . 1 . 11 . . . 1 36 . 39 . 7 5 66 . 2 62 . Distress Signals 214 | . . . . . . . . . . . . . . . . . 1 . 11 . . . 1 36 . 38 . 7 5 51 . 2 62 . Times Spotted 924 | . 27 21 . 4 46 15 48 5 15 3 1 23 5 . 41 40 42 6 28 23 40 . 8 20 56 31 24 52 45 65 13 56 90 31 Peak Tracking Total 11 | . 3 5 . 2 7 5 7 1 4 1 1 5 3 . 7 5 6 2 9 5 6 . 3 6 9 4 6 5 7 5 3 11 7 4 Tactical Retreats 38 | . 2 1 . . . 1 2 . 1 . . 1 . . 1 2 2 . 1 1 1 . . 2 5 5 1 3 . 3 . 1 2 . Traps | -11 -10 -10 -10 -9 -8 -8 -8 -8 -7 -7 -7 -7 -6 -6 -6 -6 -5 -5 -5 -5 -4 -4 -4 -4 -3 -3 -3 -2 -2 -2 -2 -1 -1 -1 ------- Run | Scr Mat Min Exi Min Mat Gar Mat Gar Fac Was Fac Gar Fac Was Fac Gar Fac Was Fac Gar Fac Was Fac Gar Res Tes Gar Res Qua Sec Gar Acc Com Ac0 Traps Triggered 69 | . 1 . . . . 3 . 6 1 . . . 1 . 3 14 2 . . 12 1 . . 6 1 2 4 1 3 3 2 2 1 . Indirectly 1 | . . . . . . . . . . . . . . . . . 1 . . . . . . . . . . . . . . . . . Trap Hack Attempts 40 | . . . . . 40 . . . . . . . . . . . . . . . . . . . . . . . . . . . . . Triggered . | . . . . . . . . . . . . . . . . . . . . . . . . . . . . . . . . . . . Disarmed . | . . . . . . . . . . . . . . . . . . . . . . . . . . . . . . . . . . . Reprogrammed 5 | . . . . . 5 . . . . . . . . . . . . . . . . . . . . . . . . . . . . . Reused 2 | . . . . . 2 . . . . . . . . . . . . . . . . . . . . . . . . . . . . . Traps Extracted . | . . . . . . . . . . . . . . . . . . . . . . . . . . . . . . . . . . . Installed . | . . . . . . . . . . . . . . . . . . . . . . . . . . . . . . . . . . . Triggered 2 | . . . . . 2 . . . . . . . . . . . . . . . . . . . . . . . . . . . . . Machines | -11 -10 -10 -10 -9 -8 -8 -8 -8 -7 -7 -7 -7 -6 -6 -6 -6 -5 -5 -5 -5 -4 -4 -4 -4 -3 -3 -3 -2 -2 -2 -2 -1 -1 -1 ---------- Run | Scr Mat Min Exi Min Mat Gar Mat Gar Fac Was Fac Gar Fac Was Fac Gar Fac Was Fac Gar Fac Was Fac Gar Res Tes Gar Res Qua Sec Gar Acc Com Ac0 Machines Disabled 114 | . . . . . 1 2 2 1 1 . . 3 . . 4 5 24 . . 6 1 . . 2 2 10 3 2 13 12 . 3 12 5 Max in Single Turn 11 | . . . . . 1 1 1 1 1 . . 1 . . 1 1 11 . . 1 . . . 1 1 1 1 1 3 4 . 1 2 1 Garrison Access 5 | . . . . . . . . . . . . . . . . . 1 . . . . . . . . . . 2 1 . . 1 . . Garrison Relay 18 | . . . . . . 1 . 1 . . . 3 . . . 4 . . . 4 . . . 2 . . 2 . . . 1 . . . Phase Generator 1 | . . . . . . . . . . . . . . . . . . . . . . . . . . . . . . . . . 1 . Machines Sabotaged . | . . . . . . . . . . . . . . . . . . . . . . . . . . . . . . . . . . . Garrisons Compromised . | . . . . . . . . . . . . . . . . . . . . . . . . . . . . . . . . . . . Overloaded Fab Kills . | . . . . . . . . . . . . . . . . . . . . . . . . . . . . . . . . . . . Hacking | -11 -10 -10 -10 -9 -8 -8 -8 -8 -7 -7 -7 -7 -6 -6 -6 -6 -5 -5 -5 -5 -4 -4 -4 -4 -3 -3 -3 -2 -2 -2 -2 -1 -1 -1 --------- Run | Scr Mat Min Exi Min Mat Gar Mat Gar Fac Was Fac Gar Fac Was Fac Gar Fac Was Fac Gar Fac Was Fac Gar Res Tes Gar Res Qua Sec Gar Acc Com Ac0 Machines Accessed 117 | . 7 . 2 . 12 . 8 . 1 . 4 . 1 . 9 . 4 . 3 . 1 . 2 . 6 10 . 6 12 14 . 8 7 . Terminals 81 | . 5 . . . 9 . 5 . 1 . 3 . 1 . 4 . 2 . 1 . 1 . 1 . 5 7 . 3 9 11 . 6 7 . Fabricators 4 | . . . . . . . . . . . . . . . 1 . . . 1 . . . . . . . . 1 . . . 1 . . Repair Stations 8 | . 1 . . . 1 . 1 . . . . . . . 2 . 1 . . . . . . . 1 1 . . . . . . . . Recycling Units 3 | . 1 . . . 1 . 1 . . . . . . . . . . . . . . . . . . . . . . . . . . . Scanalyzers 6 | . . . . . . . . . . . . . . . 1 . . . . . . . . . . 1 . . 2 2 . . . . Garrison Access 13 | . . . . . 1 . 1 . . . 1 . . . 1 . 1 . 1 . . . 1 . . 1 . 2 1 1 . 1 . . Total Hacks 267 | . 22 . 2 . 35 . 22 . 2 . 8 . 2 . 23 . 12 . 5 . 2 . 3 . 17 19 . 11 21 31 . 17 13 . Successful 120 | . 13 . 2 . 22 . 8 . . . 5 . . . 12 . 5 . 3 . . . 1 . 8 8 . 4 8 10 . 6 5 . Failed 147 | . 9 . . . 13 . 14 . 2 . 3 . 2 . 11 . 7 . 2 . 2 . 2 . 9 11 . 7 13 21 . 11 8 . Catastrophic 34 | . . . . . 2 . 3 . 1 . 1 . 1 . 2 . . . . . . . . . 3 5 . . 6 5 . 4 1 . Database Lockouts . | . . . . . . . . . . . . . . . . . . . . . . . . . . . . . . . . . . . Manual 111 | . 15 . 1 . 18 . 17 . . . 4 . 2 . 7 . 3 . 2 . 2 . 2 . 4 8 . . 4 10 . 4 8 . Terminals 200 | . 15 . . . 30 . 18 . 2 . 6 . 2 . 12 . 8 . 1 . 2 . 2 . 13 15 . 7 17 23 . 14 13 . Fabricators 10 | . . . . . . . . . . . . . . . 4 . . . 2 . . . . . . . . 2 . . . 2 . . Repair Stations 22 | . 6 . . . 2 . 2 . . . . . . . 4 . 3 . . . . . . . 4 1 . . . . . . . . Recycling Units 3 | . 1 . . . 1 . 1 . . . . . . . . . . . . . . . . . . . . . . . . . . . Scanalyzers 13 | . . . . . . . . . . . . . . . 2 . . . . . . . . . . 2 . . 3 6 . . . . Garrison Access 17 | . . . . . 2 . 1 . . . 2 . . . 1 . 1 . 2 . . . 1 . . 1 . 2 1 2 . 1 . . Terminal Hacks 45 | . 3 . 2 . 12 . 2 . . . 2 . . . 3 . 1 . . . . . . . 2 4 . 1 3 4 . 4 2 . Record 1 | . . . 1 . . . . . . . . . . . . . . . . . . . . . . . . . . . . . . . Part Schematic 1 | . 1 . . . . . . . . . . . . . . . . . . . . . . . . . . . . . . . . . Robot Analysis 5 | . 2 . . . 2 . . . . . . . . . . . . . . . . . . . . . . . . 1 . . . . Prototype ID Bank 4 | . . . . . 1 . . . . . 1 . . . 1 . . . . . . . . . 1 . . . . . . . . . Open Door 6 | . . . . . . . . . . . . . . . . . . . . . . . . . . . . . 2 1 . 2 1 . Branch Access Points 2 | . . . . . . . . . . . . . . . . . . . . . . . . . . . . 1 . . . 1 . . Terminal Index 1 | . . . . . . . . . . . . . . . . . . . . . . . . . . . . . . . . . 1 . Alert Level 2 | . . . . . 2 . . . . . . . . . . . . . . . . . . . . . . . . . . . . . Unreport Threat 8 | . . . . . . . 2 . . . . . . . 1 . 1 . . . . . . . . 1 . . 1 1 . 1 . . Locate Traps 7 | . . . . . 2 . . . . . . . . . 1 . . . . . . . . . 1 2 . . . 1 . . . . Recall Investigation 1 | . . . . . 1 . . . . . . . . . . . . . . . . . . . . . . . . . . . . . Hauler Manifests 2 | . . . . . 1 . . . . . 1 . . . . . . . . . . . . . . . . . . . . . . . Zone Layout 4 | . . . . . 3 . . . . . . . . . . . . . . . . . . . . 1 . . . . . . . . EX-Prototype ID Bank 1 | . . . 1 . . . . . . . . . . . . . . . . . . . . . . . . . . . . . . . Fabricator Hacks 3 | . . . . . . . . . . . . . . . 1 . . . 1 . . . . . . . . 1 . . . . . . Network Status 2 | . . . . . . . . . . . . . . . 1 . . . . . . . . . . . . 1 . . . . . . Build 1 | . . . . . . . . . . . . . . . . . . . 1 . . . . . . . . . . . . . . . Repair Station Hacks 18 | . 6 . . . 2 . 2 . . . . . . . 3 . 2 . . . . . . . 3 . . . . . . . . . Scan Component 10 | . 3 . . . 1 . 1 . . . . . . . 2 . 1 . . . . . . . 2 . . . . . . . . . Repair 8 | . 3 . . . 1 . 1 . . . . . . . 1 . 1 . . . . . . . 1 . . . . . . . . . Recycling Unit Hacks . | . . . . . . . . . . . . . . . . . . . . . . . . . . . . . . . . . . . Scanalyzer 6 | . . . . . . . . . . . . . . . 1 . . . . . . . . . . 1 . . 2 2 . . . . Insert Component 6 | . . . . . . . . . . . . . . . 1 . . . . . . . . . . 1 . . 2 2 . . . . Garrison Access Hacks 16 | . . . . . 1 . 1 . . . 2 . . . 1 . 1 . 2 . . . 1 . . 1 . 2 1 2 . 1 . . Unlock Access 8 | . . . . . 1 . 1 . . . 1 . . . 1 . . . 1 . . . 1 . . 1 . . . 1 . . . . Seal Access 5 | . . . . . . . . . . . . . . . . . 1 . . . . . . . . . . 2 1 . . 1 . . Coupler Status 3 | . . . . . . . . . . . 1 . . . . . . . 1 . . . . . . . . . . 1 . . . . Unauthorized Hacks 32 | . 4 . . . 7 . 3 . . . 1 . . . 3 . 1 . . . . . . . 3 2 . . 2 2 . 1 3 . Terminals 26 | . 3 . . . 5 . 2 . . . 1 . . . 1 . 1 . . . . . . . 3 2 . . 2 2 . 1 3 . Track 4 | . . . . . 1 . . . . . . . . . . . . . . . . . . . . 1 . . 1 . . . 1 . Assimilate 1 | . . . . . . . 1 . . . . . . . . . . . . . . . . . . . . . . . . . . . Botnet 17 | . 2 . . . 3 . 1 . . . 1 . . . 1 . 1 . . . . . . . 2 1 . . 1 2 . 1 1 . Disrupt 1 | . . . . . . . . . . . . . . . . . . . . . . . . . 1 . . . . . . . . . Operators 3 | . 1 . . . 1 . . . . . . . . . . . . . . . . . . . . . . . . . . . 1 . Fabricators 2 | . . . . . . . . . . . . . . . 2 . . . . . . . . . . . . . . . . . . . Report 1 | . . . . . . . . . . . . . . . 1 . . . . . . . . . . . . . . . . . . . Haulers 1 | . . . . . . . . . . . . . . . 1 . . . . . . . . . . . . . . . . . . . Repair Stations . | . . . . . . . . . . . . . . . . . . . . . . . . . . . . . . . . . . . Recycling Units 3 | . 1 . . . 1 . 1 . . . . . . . . . . . . . . . . . . . . . . . . . . . Tunnel 3 | . 1 . . . 1 . 1 . . . . . . . . . . . . . . . . . . . . . . . . . . . Scanalyzers . | . . . . . . . . . . . . . . . . . . . . . . . . . . . . . . . . . . . Garrison Access 1 | . . . . . 1 . . . . . . . . . . . . . . . . . . . . . . . . . . . . . Restock 1 | . . . . . 1 . . . . . . . . . . . . . . . . . . . . . . . . . . . . . Data Cores Recovered 1 | . 1 . . . . . . . . . . . . . . . . . . . . . . . . . . . . . . . . . Used . | . . . . . . . . . . . . . . . . . . . . . . . . . . . . . . . . . . . Hacking Detections 98 | . 5 . . . 11 . 6 . 1 . 4 . 1 . 8 . 2 . 3 . 1 . 1 . 6 9 . 4 10 13 . 7 6 . Full Trace Events 5 | . . . . . . . 1 . 1 . . . . . . . . . . . . . . . . . . 1 . 1 . 1 . . Feedback Events 1 | . . . . . . . . . . . . . . . . . . . . . . . . . . . . 1 . . . . . . Corruption 1 | . . . . . . . . . . . . . . . . . . . . . . . . . . . . 1 . . . . . . Feedback Blocked . | . . . . . . . . . . . . . . . . . . . . . . . . . . . . . . . . . . . Robot Schematics Acquired 5 | . . . . . . . . . . . . . . . . . . . . . . . . . . 2 . . 2 1 . . . . Robots Built . | . . . . . . . . . . . . . . . . . . . . . . . . . . . . . . . . . . . Authchips . | . . . . . . . . . . . . . . . . . . . . . . . . . . . . . . . . . . . Time . | . . . . . . . . . . . . . . . . . . . . . . . . . . . . . . . . . . . Total Robot Build Rating . | . . . . . . . . . . . . . . . . . . . . . . . . . . . . . . . . . . . Part Schematics Acquired 9 | . 1 . . . . . . . . . . . . . . . . . . . . . . . . 2 . . 3 3 . . . . Parts Built 2 | . . . . . . . . . . . . . . . . . . . 2 . . . . . . . . . . . . . . . Authchips . | . . . . . . . . . . . . . . . . . . . . . . . . . . . . . . . . . . . Time 117 | . . . . . . . . . . . . . . . . . . . 117 . . . . . . . . . . . . . . . Total Part Build Rating 14 | . . . . . . . . . . . . . . . . . . . 14 . . . . . . . . . . . . . . . Parts Repaired 8 | . 3 . . . 1 . 1 . . . . . . . 1 . 1 . . . . . . . 1 . . . . . . . . . Time 286 | . 78 . . . 26 . 38 . . . . . . . 44 . 50 . . . . . . . 50 . . . . . . . . . Parts Recycled . | . . . . . . . . . . . . . . . . . . . . . . . . . . . . . . . . . . . Recycled Matter . | . . . . . . . . . . . . . . . . . . . . . . . . . . . . . . . . . . . Retrieved Matter . | . . . . . . . . . . . . . . . . . . . . . . . . . . . . . . . . . . . Retrieved Components . | . . . . . . . . . . . . . . . . . . . . . . . . . . . . . . . . . . . Parts Scanalyzed . | . . . . . . . . . . . . . . . . . . . . . . . . . . . . . . . . . . . Part Schematics Acquired . | . . . . . . . . . . . . . . . . . . . . . . . . . . . . . . . . . . . Parts Damaged . | . . . . . . . . . . . . . . . . . . . . . . . . . . . . . . . . . . . Bothacking | -11 -10 -10 -10 -9 -8 -8 -8 -8 -7 -7 -7 -7 -6 -6 -6 -6 -5 -5 -5 -5 -4 -4 -4 -4 -3 -3 -3 -2 -2 -2 -2 -1 -1 -1 ------------ Run | Scr Mat Min Exi Min Mat Gar Mat Gar Fac Was Fac Gar Fac Was Fac Gar Fac Was Fac Gar Fac Was Fac Gar Res Tes Gar Res Qua Sec Gar Acc Com Ac0 Used RIF Installer 8 | . . . . . . 1 . 1 . . . 1 . . . 1 . . . 1 . . . 1 . . 1 . . . 1 . . . Hotswap 1 | . . . . . . . . . . . . . . . . . . . . . . . . . . . . . . . 1 . . . Command Fork 1 | . . . . . . . . . . . . 1 . . . . . . . . . . . . . . . . . . . . . . Robot Detection 1 | . . . . . . . . . . . . . . . . . . . . . . . . . . . 1 . . . . . . . Alert ID Control 1 | . . . . . . . . 1 . . . . . . . . . . . . . . . . . . . . . . . . . . Program Shield 1 | . . . . . . . . . . . . . . . . . . . . . . . . 1 . . . . . . . . . . Autooverride 1 | . . . . . . . . . . . . . . . . . . . . 1 . . . . . . . . . . . . . . Autoassimilate 1 | . . . . . . . . . . . . . . . . 1 . . . . . . . . . . . . . . . . . . Robots Hacked 110 | . . . 4 . . . 1 . . . . 11 2 . 6 9 2 6 5 12 6 . . 4 6 10 5 2 4 8 . 2 5 . Non-combat 37 | . . . 3 . . . 1 . . . . . 2 . . . 1 . 5 . 6 . . . 5 5 . 2 3 2 . . 2 . Combat 73 | . . . 1 . . . . . . . . 11 . . 6 9 1 6 . 12 . . . 4 1 5 5 . 1 6 . 2 3 . Autooverrided 4 | . . . . . . . . . . . . . . . . . . . . 2 . . . . . 1 1 . . . . . . . Autoassimilated 4 | . . . . . . . . . . . . . . . . . . . . 1 . . . 1 . 1 . . . 1 . . . . Robot Hacks Applied 122 | . . . 4 . . . 1 . . . . 11 2 . 8 9 2 6 5 10 7 . . 3 8 10 4 5 6 10 . 2 9 . parse_system 9 | . . . 4 . . . . . . . . . . . . 1 . . . 1 . . . . . . . . 1 . . 1 1 . find_chute 2 | . . . . . . . . . . . . . . . . . 1 . . . 1 . . . . . . . . . . . . . ignore_repairs 3 | . . . . . . . . . . . . . . . . . . . . . . . . . . 2 . . . 1 . . . . drop_inventory 11 | . . . . . . . . . . . . . 1 . . . . . 3 . 2 . . . 3 2 . . . . . . . . ignore_parts 7 | . . . . . . . . . . . . . 1 . . . . . 2 . 3 . . . 1 . . . . . . . . . purge_threat 19 | . . . . . . . . . . . . . . . . . . . . . . . . . 3 2 . 4 2 3 . . 5 . block_reporting 4 | . . . . . . . . . . . . . . . . . . . . . . . . . . 1 . . 2 1 . . . . disable_scanner 5 | . . . . . . . . . . . . . . . . . . . . . . . . . . 2 . . . 3 . . . . ignore_targets 6 | . . . . . . . . . . . . . . . . . . 6 . . . . . . . . . . . . . . . . find_garrison 1 | . . . . . . . . . . . . . . . 1 . . . . . . . . . . . . . . . . . . . overload_power 4 | . . . . . . . . . . . . 2 . . 1 . . . . . . . . . . . . 1 . . . . . . amplify_resonance 1 | . . . . . . . . . . . . 1 . . . . . . . . . . . . . . . . . . . . . . reboot_system 2 | . . . . . . . . . . . . . . . . 2 . . . . . . . . . . . . . . . . . . overwrite_iff 27 | . . . . . . . . . . . . 7 . . 4 4 . . . 2 . . . 3 . 1 4 . . . . 1 1 . formatsys_low 5 | . . . . . . . 1 . . . . . . . . . . . . . 1 . . . . . . . 1 2 . . . . formatsys_high 16 | . . . . . . . . . . . . 1 . . 2 2 1 . . 7 . . . . 1 . . . . . . . 2 . Relay Couplers Released 91 | . . . . . 3 3 . 5 . . . 13 . . 4 14 1 . . 18 . . . 8 . 4 10 1 1 3 3 . . . Machine Destruction 77 | . . . . . . 3 . 5 . . . 13 . . . 14 1 . . 18 . . . 8 . . 10 1 1 . 3 . . . Programmers 14 | . . . . . 3 . . . . . . . . . 4 . . . . . . . . . . 4 . . . 3 . . . . Attached 33 | . . . . . . . 1 . . . . 3 1 . 2 2 1 1 . 6 . . . 1 2 3 2 2 2 2 . . 2 . Fabnet Peak Effective % . | . . . . . . . . . . . . . . . . . . . . . . . . . . . . . . . . . . . Robots Rewired 10 | . . . . . . . . . . . . . . . . 5 . . . 1 1 . . 1 . . . 1 . . . . 1 . Allies Hacked 9 | . . . . . . . . . . . . 1 . . 1 . 1 . . . 3 . . . . . . . 1 1 . . 1 . Hacks Repelled . | . . . . . . . . . . . . . . . . . . . . . . . . . . . . . . . . . . . Allies | -11 -10 -10 -10 -9 -8 -8 -8 -8 -7 -7 -7 -7 -6 -6 -6 -6 -5 -5 -5 -5 -4 -4 -4 -4 -3 -3 -3 -2 -2 -2 -2 -1 -1 -1 -------- Run | Scr Mat Min Exi Min Mat Gar Mat Gar Fac Was Fac Gar Fac Was Fac Gar Fac Was Fac Gar Fac Was Fac Gar Res Tes Gar Res Qua Sec Gar Acc Com Ac0 Total Allies 143 | . . 1 . 3 . . 2 . . 20 . 9 . 20 7 15 1 1 . 13 2 20 . 5 1 3 6 1 1 3 . 1 6 2 Largest Group 20 | . . 1 . 3 3 . 2 2 2 20 12 4 . 20 20 5 5 1 . 6 6 20 19 12 1 2 2 1 1 1 . 1 2 . Highest-Rated Group 718 | . . 31 . 40 40 . 33 32 32 572 291 93 . 718 717 136 162 31 . 282 268 718 668 463 47 94 116 42 35 64 . 64 283 . Highest-Rated Ally 219 | . . 31 . 16 16 . 23 23 23 36 31 31 . 50 50 47 49 31 . 49 50 50 50 47 47 47 116 42 35 64 . 64 219 . Total Orders 66 | . . . . . . . 10 11 7 . . . . . . 3 . . . 8 1 . . 10 . . . . 9 1 . . 6 . STAY 32 | . . . . . . . 3 6 3 . . . . . . 2 . . . 5 . . . 5 . . . . 4 1 . . 3 . ROAM 5 | . . . . . . . . . . . . . . . . . . . . . . . . 5 . . . . . . . . . . FOLLOW 20 | . . . . . . . 4 3 3 . . . . . . 1 . . . 3 . . . . . . . . 3 . . . 3 . AID 9 | . . . . . . . 3 2 1 . . . . . . . . . . . 1 . . . . . . . 2 . . . . . Ally Attacks 811 | . . 16 . . 5 . . . . 63 9 30 . . 202 34 14 98 . 16 55 . 122 42 9 9 10 2 . 14 . 2 59 . Total Damage 20185 | . . 271 . . 55 . . . . 1311 102 384 . . 4282 620 570 1726 . 355 1414 . 2093 1061 202 290 331 150 . 169 . 82 4717 . Kills 101 | . . 5 . . . . . . . 3 1 3 . . 26 3 3 2 . 3 7 . 13 10 . 1 . . . 1 . 2 18 . Allies Corrupted 8 | . . . . . . . . . . . . . . . 1 . . 1 . . 1 . . 1 1 1 . . . . . . 2 . Allies Melted 3 | . . . . . . . . . . . . . . . 1 . . . . . . . . . . . 2 . . . . . . . Field Lobotomies 4 | . . . . . . . . . . . . . . . . . . . . . . . . . . . . . . . . . 2 2 Intel | -11 -10 -10 -10 -9 -8 -8 -8 -8 -7 -7 -7 -7 -6 -6 -6 -6 -5 -5 -5 -5 -4 -4 -4 -4 -3 -3 -3 -2 -2 -2 -2 -1 -1 -1 ------- Run | Scr Mat Min Exi Min Mat Gar Mat Gar Fac Was Fac Gar Fac Was Fac Gar Fac Was Fac Gar Fac Was Fac Gar Res Tes Gar Res Qua Sec Gar Acc Com Ac0 Robot Analysis Total 5 | . 2 . . . 2 . . . . . . . . . . . . . . . . . . . . . . . . 1 . . . . Derelict Logs Recovered 3 | . . 3 . . . . . . . . . . . . . . . . . . . . . . . . . . . . . . . . Drone Launches . | . . . . . . . . . . . . . . . . . . . . . . . . . . . . . . . . . . . Drone Recoveries . | . . . . . . . . . . . . . . . . . . . . . . . . . . . . . . . . . . . Exploration | -11 -10 -10 -10 -9 -8 -8 -8 -8 -7 -7 -7 -7 -6 -6 -6 -6 -5 -5 -5 -5 -4 -4 -4 -4 -3 -3 -3 -2 -2 -2 -2 -1 -1 -1 ------------- Run | Scr Mat Min Exi Min Mat Gar Mat Gar Fac Was Fac Gar Fac Was Fac Gar Fac Was Fac Gar Fac Was Fac Gar Res Tes Gar Res Qua Sec Gar Acc Com Ac0 Turns Passed 66793 | . 1998 1285 562 972 2587 1503 1439 2323 2229 1043 332 2339 372 574 2235 5537 1237 532 1432 4784 1219 982 308 2292 1789 2092 1920 2411 5008 2917 1919 1837 6119 665 Spaces Moved 26526 | 1 1118 659 342 491 1040 566 465 664 429 446 190 1089 190 350 948 1413 419 133 476 1682 354 398 121 801 756 996 731 838 1850 1394 606 823 3470 277 Core 23 | . . . . . . . . . . . . . . . . 16 . . . . . . . . . . . . . . . . . 7 Treads 25213 | . 440 659 342 491 1040 566 465 664 429 446 190 1089 190 350 948 940 265 133 476 1682 354 398 121 801 756 996 731 838 1850 1394 606 823 3470 270 Legs 679 | 1 678 . . . . . . . . . . . . . . . . . . . . . . . . . . . . . . . . . Wheels 611 | . . . . . . . . . . . . . . . . 457 154 . . . . . . . . . . . . . . . . . Hover . | . . . . . . . . . . . . . . . . . . . . . . . . . . . . . . . . . . . Flight . | . . . . . . . . . . . . . . . . . . . . . . . . . . . . . . . . . . . Fastest Speed 50 | 120 120 160 160 160 160 240 240 240 240 160 160 160 160 160 160 150 165 160 240 160 240 240 240 240 161 161 158 158 150 146 166 155 141 50 Average Speed 188 | 120 135 160 160 160 181 240 240 240 240 209 160 160 160 160 205 298 218 240 240 235 240 240 240 240 168 169 181 159 151 148 217 168 147 143 Slowest Speed 2000 | 120 160 160 160 160 240 240 240 240 240 240 160 160 160 160 246 2000 250 250 240 240 240 240 240 240 241 247 243 238 241 166 246 246 234 147 Overloaded Moves . | . . . . . . . . . . . . . . . . . . . . . . . . . . . . . . . . . . . Propulsion Burnouts . | . . . . . . . . . . . . . . . . . . . . . . . . . . . . . . . . . . . Robots Hopped . | . . . . . . . . . . . . . . . . . . . . . . . . . . . . . . . . . . . Cave-ins Triggered 1 | . . . . . . . . . . . . . . . . . . . . . . . . . . . . . . . . . 1 . Teleports 2 | . . . . . . . . . . . . . . . . . . . . . . . . . . . . . . . . . 1 1 Exploration Rate (%) 55 | 2 97 97 70 91 87 56 56 50 9 96 7 80 8 95 32 88 14 84 14 75 10 96 5 66 28 87 60 24 93 73 35 27 90 30 Regions Visited 34 Branch Regions 8 Pre-discovered Areas 6 | . 1 2 1 . 1 . 1 . . . . . . . . . . . . . . . . . . . . . . . . . . . Known Exits Taken 11 | . . 1 . . 1 . 1 . . . 1 . . . 1 . . . 1 . . . 1 . . 1 . 1 . 1 . 1 . . Unknown Exits Taken 7 | 1 1 . 1 1 . . . . . . . . . . . . . . . . . . . . 1 . . . 1 . . . 1 . Scrap Searched 3 | . . 2 . 1 . . . . . . . . . . . . . . . . . . . . . . . . . . . . . . Spaces Dug 336 | . . 14 . 1 13 3 32 . . . 1 . . . 16 . 2 . 1 . . . . . 4 12 14 13 15 14 2 37 56 86 Terrain Destroyed 1762 | . . 25 . 1 65 14 82 . 6 . 1 22 21 . 59 22 53 5 9 1 . . . 2 51 49 32 30 97 30 9 56 223 797 Melee 3 | . . 1 . 1 . . . . . . 1 . . . . . . . . . . . . . . . . . . . . . . . Projectile 323 | . . . . . 7 . . . . . . . 1 . 16 . 4 5 3 1 . . . 2 12 33 . 26 31 30 9 37 78 28 AOE 1435 | . . 24 . . 58 14 82 . 6 . . 22 20 . 43 22 49 . 6 . . . . . 39 16 32 4 66 . . 19 144 769 Terrain Rammed . | . . . . . . . . . . . . . . . . . . . . . . . . . . . . . . . . . . . Walls Destroyed . | . . . . . . . . . . . . . . . . . . . . . . . . . . . . . . . . . . . Machines Disabled . | . . . . . . . . . . . . . . . . . . . . . . . . . . . . . . . . . . . Actions | -11 -10 -10 -10 -9 -8 -8 -8 -8 -7 -7 -7 -7 -6 -6 -6 -6 -5 -5 -5 -5 -4 -4 -4 -4 -3 -3 -3 -2 -2 -2 -2 -1 -1 -1 --------- Run | Scr Mat Min Exi Min Mat Gar Mat Gar Fac Was Fac Gar Fac Was Fac Gar Fac Was Fac Gar Fac Was Fac Gar Res Tes Gar Res Qua Sec Gar Acc Com Ac0 Total 40738 | . 1434 805 355 655 1528 660 666 1366 1551 531 216 1625 248 361 1140 2561 613 262 641 2449 667 427 136 1171 1212 1322 1299 1818 3964 2076 1186 1160 4188 445 Wait 9108 | . 156 87 1 135 239 29 87 665 1030 44 14 415 28 1 46 895 44 1 35 551 137 2 . 301 175 50 442 679 1784 253 478 94 177 33 Move 26501 | . 1117 658 341 490 1039 565 465 663 429 445 190 1088 190 349 948 1412 419 132 476 1681 354 397 121 800 755 996 730 837 1849 1394 605 822 3468 276 Hop . | . . . . . . . . . . . . . . . . . . . . . . . . . . . . . . . . . . . Pick Up 386 | . 14 2 3 3 22 8 10 4 13 4 2 20 2 1 11 24 18 5 9 19 13 4 . 6 23 15 16 14 21 21 12 7 34 6 Fast Attach 212 | . 8 . . 1 8 1 1 . . 3 . . 3 2 5 5 10 7 1 7 8 6 . . 15 15 7 13 22 28 3 10 18 5 Attach 195 | . 1 . 1 . 7 1 . . 4 . . 3 2 1 3 8 2 3 4 6 6 2 . 1 11 20 6 24 22 17 5 10 23 2 Detach 132 | . 1 . . . 1 . . . . . . 1 1 . 1 3 . 1 3 9 5 . . 1 9 16 4 20 17 12 5 11 10 1 Swap 605 | . 5 9 2 7 29 12 17 . 14 6 4 17 7 2 28 27 27 6 18 23 14 1 4 6 33 30 12 24 32 70 6 34 55 24 Drop 535 | . 11 3 3 6 27 8 13 4 12 12 4 16 5 3 15 22 21 16 11 21 22 10 . 5 29 25 19 25 46 40 13 16 45 7 Fire 2561 | . 36 34 . 10 107 29 63 19 29 1 1 61 10 . 73 99 68 91 46 64 106 5 11 39 161 152 59 174 168 227 57 155 321 85 Melee 168 | . 46 8 4 1 . 1 1 . 16 16 1 3 . 2 3 13 . . 27 . . . . . . . . . 1 9 . . 10 6 Ram . | . . . . . . . . . . . . . . . . . . . . . . . . . . . . . . . . . . . Kick 38 | . 38 . . . . . . . . . . . . . . . . . . . . . . . . . . . . . . . . . Crush 62 | . 1 4 . 2 9 . 8 . 4 . . . . . 2 . 3 . 11 . 1 . . . 1 3 . 4 . 2 . 1 6 . Escape Stasis 84 | . . . . . . 6 . 11 . . . . . . 4 24 . . . 20 . . . 12 . . 4 . . . 2 . 1 . Rewire 111 | . . . . . . . 1 . . . . 1 . . 1 29 1 . . 48 1 . . . . . . 4 2 3 . . 20 . Trap 40 | . . . . . 40 . . . . . . . . . . . . . . . . . . . . . . . . . . . . . Miscellaneous . | . . . . . . . . . . . . . . . . . . . . . . . . . . . . . . . . . . . Route ------- -11/Scrapyard -10/Materials (discovered 5 exits: [*Mat x3] / [*Min x2]) -10/Mines (discovered 3 exits: [*Mat x2] / *Exi) -10/Exiles -9/Mines (discovered 2 exits: *Mat x2) -8/Materials (discovered 6 exits: *Fac x3 / [*Sto x2] / Gar) -8/Garrison (discovered 2 exits: *Mat x2) -8/Materials (discovered 3 exits: *Fac x2 / Gar) -8/Garrison -7/Factory -7/Waste -7/Factory -7/Garrison (discovered 3 exits: *Fac x3) -6/Factory -6/Waste -6/Factory (discovered 3 exits: *Fac / [*Low] / Gar) -6/Garrison (discovered 3 exits: *Fac x3) -5/Factory -5/Waste -5/Factory (discovered 2 exits: *Fac / Gar) -5/Garrison (discovered 2 exits: *Fac x2) -4/Factory -4/Waste -4/Factory -4/Garrison (discovered 3 exits: *Res x3) -3/Research -3/Testing (discovered 2 exits: *Res / Gar) -3/Garrison (discovered 2 exits: *Res x2) -2/Research (discovered 3 exits: Acc / *Qua x2) -2/Quarantine (discovered 2 exits: *Acc / *Sec) -2/Section 7 (discovered 2 exits: Acc / Gar) -2/Garrison -1/Access (discovered 2 exits: [Sur] / *Com) -1/Command (discovered 3 exits: [*Sur x2] / [*Ac0]) -1/Access_0 Near Former Tau Ceti IV History --------- Turn | Location | Event 1 | -11/Scrapyard | Discovered new exit (range 0) 1 | -11/Scrapyard | Entered Materials 211 | -10/Materials | Discovered new exit (range 16) 310 | -10/Materials | Build established: Mutant 524 | -10/Materials | Discovered new exit (range 15) 545 | -10/Materials | Discovered new exit (range 14) 589 | -10/Materials | Discovered new exit (range 5) 688 | -10/Materials | Discovered new exit (range 9) 1690 | -10/Materials | Repaired Mining Claw 1717 | -10/Materials | Repaired Lgt. Treads 1745 | -10/Materials | Repaired Lgt. Treads 1999 | -10/Materials | Entered Mines 2008 | -10/Mines | Core integrity fell below 50% 2026 | -10/Mines | Learned location of Zion (-6) 2053 | -10/Mines | Received a Mining Laser from a helpful Derelict 2228 | -10/Mines | Received a Rocket Launcher from a helpful Derelict 2539 | -10/Mines | Discovered new exit (range 6) 2573 | -10/Mines | Deemed a non-threat by the Exiles lab entrance 2695 | -10/Mines | Assembled infested the area 2880 | -10/Mines | Discovered new exit (range 8) 2927 | -10/Mines | Identified exit to Exiles 3284 | -10/Mines | Entered Exiles 3324 | -10/Exiles | Met 8R-AWN 3355 | -10/Exiles | Met EX-HEX 3417 | -10/Exiles | Met EX-DEC 3489 | -10/Exiles | Met EX-BIN 3514 | -10/Exiles | Aligned with FarCom system 3516 | -10/Exiles | Given EX-Vault access code 3561 | -10/Exiles | Opened EX-Vault 3576 | -10/Exiles | Found Field Lobotomy Kit 3582 | -10/Exiles | Found Superbattery 3626 | -10/Exiles | Warned to stay clear of 0b10 Research branches 3820 | -10/Exiles | Discovered new exit (range 14) 3846 | -10/Exiles | Stole two prototypes: Field Lobotomy Kit, Superbattery 3846 | -10/Exiles | Entered Mines 3940 | -9/Mines | Found a hidden stash of uninstalled traps 3999 | -9/Mines | Discovered new exit (range 8) 4003 | -9/Mines | A weapon hastily lodged in a ceiling crevice suddenly fell to the ground 4135 | -9/Mines | Discovered new exit (range 13) 4156 | -9/Mines | Joined a pair of Derelicts in attacking an 0b10 outpost 4455 | -9/Mines | Assisted by bots powering up and referring to "LRC-V3" 4469 | -9/Mines | Build established: Scavenger-Mutant 4818 | -9/Mines | Entered Materials 4818 | -8/Materials | Accompanied by 3 allies 4818 | -8/Materials | Evolved 4 slots: Propulsion x1, Utility x3 5550 | -8/Materials | Discovered new exit (range 16) 5646 | -8/Materials | Discovered new exit (range 9) 5753 | -8/Materials | Destroyed 7 combat bots 5875 | -8/Materials | Repaired Lgt. Treads 6113 | -8/Materials | Discovered new exit (range 16) 6818 | -8/Materials | Search patrols dispatched 6984 | -8/Materials | Discovered new exit (range 11) 6984 | -8/Materials | Discovered new exit (range 14) 7218 | -8/Materials | Search patrols dispatched 7331 | -8/Materials | Identified exit to Garrison 7405 | -8/Materials | Entered Garrison 7581 | -8/Garrison | Triggered checkpoint 7696 | -8/Garrison | Discovered new exit (range 8) 7786 | -8/Garrison | Triggered checkpoint 7952 | -8/Garrison | Discovered new exit (range 15) 8001 | -8/Garrison | Installed Relay Interface Framework 8434 | -8/Garrison | Triggered checkpoint 8516 | -8/Garrison | Garrison Relay disabled 8837 | -8/Garrison | Build established: Bothacker-Mutant 8908 | -8/Garrison | Entered Materials 9125 | -8/Materials | Repaired EM Pulse Cannon 9438 | -8/Materials | Discovered new exit (range 16) 9708 | -8/Materials | First assault squad dispatched 10145 | -8/Materials | Garrison activated, responded to threat 10178 | -8/Materials | Discovered new exit (range 14) 10347 | -8/Materials | Identified exit to Garrison 10347 | -8/Materials | Entered Garrison 10347 | -8/Garrison | Accompanied by 2 allies 10564 | -8/Garrison | Triggered checkpoint 11192 | -8/Garrison | Garrison Relay disabled 11880 | -8/Garrison | Triggered checkpoint 11908 | -8/Garrison | Triggered checkpoint 12059 | -8/Garrison | Discovered new exit (range 8) 12090 | -8/Garrison | Expanded RIF knowledge: Alert ID Control 12670 | -8/Garrison | Entered Factory 12670 | -7/Factory | Accompanied by 2 allies 12670 | -7/Factory | Evolved 2 slots: Propulsion x1, Utility x1 12672 | -7/Factory | FarCom data flow suspended 14899 | -7/Factory | Sucked down chute 14899 | -7/Factory | Entered Waste 14900 | -7/Waste | Joined by Warlord forces that had cleared the area 15390 | -7/Waste | A Compactor rumbled back to life 15390 | -7/Waste | Spotted C-40 Crusher 15391 | -7/Waste | Allies destroyed C-40 Crusher 15590 | -7/Waste | A Compactor rumbled back to life 15596 | -7/Waste | Allies destroyed C-40 Crusher 15629 | -7/Waste | Discovered new exit (range 16) 15660 | -7/Waste | A Compactor rumbled back to life 15660 | -7/Waste | Spotted C-40 Crusher 15667 | -7/Waste | Allies destroyed C-40 Crusher 15942 | -7/Waste | Entered Factory 15942 | -7/Factory | Accompanied by 12 allies 16274 | -7/Factory | Identified exit to Garrison 16274 | -7/Factory | Entered Garrison 16274 | -7/Garrison | Accompanied by 4 allies 16354 | -7/Garrison | Triggered checkpoint 16360 | -7/Garrison | Triggered checkpoint 16464 | -7/Garrison | Triggered checkpoint 16507 | -7/Garrison | Garrison Relay disabled 16541 | -7/Garrison | Discovered new exit (range 14) 16573 | -7/Garrison | Expanded RIF knowledge: Command Fork 16882 | -7/Garrison | Triggered checkpoint 16949 | -7/Garrison | Discovered new exit (range 12) 16994 | -7/Garrison | Triggered checkpoint 17384 | -7/Garrison | Garrison Relay disabled 17564 | -7/Garrison | Triggered checkpoint 17643 | -7/Garrison | Garrison Relay disabled 17684 | -7/Garrison | Discovered new exit (range 12) 18613 | -7/Garrison | Entered Factory 18613 | -6/Factory | Evolved 2 slots: Utility x2 18985 | -6/Factory | Sucked down chute 18985 | -6/Factory | Entered Waste 18986 | -6/Waste | Joined by Warlord forces that had cleared the area 19302 | -6/Waste | Discovered new exit (range 13) 19559 | -6/Waste | Entered Factory 19559 | -6/Factory | Accompanied by 20 allies 19831 | -6/Factory | Repaired Imp. EM Pulse Cannon 20184 | -6/Factory | Discovered new exit (range 4) 20504 | -6/Factory | Spotted B-75 Beast 20520 | -6/Factory | Destroyed B-75 Beast 20761 | -6/Factory | Discovered new exit (range 5) 21161 | -6/Factory | P-60 Hacker assimilated allied LZ-76S(g) 21659 | -6/Factory | First assault squad dispatched 21794 | -6/Factory | Identified exit to Garrison 21794 | -6/Factory | Entered Garrison 22120 | -6/Garrison | Spotted B-75 Beast 22161 | -6/Garrison | Destroyed B-75 Beast 22349 | -6/Garrison | Triggered checkpoint 22368 | -6/Garrison | Triggered checkpoint 22779 | -6/Garrison | Discovered new exit (range 8) 23059 | -6/Garrison | Discovered new exit (range 8) 23333 | -6/Garrison | Discovered new exit (range 13) 23389 | -6/Garrison | Expanded RIF knowledge: Autoassimilate 23662 | -6/Garrison | Triggered checkpoint 23686 | -6/Garrison | Build established: Botlord-Mutant 23731 | -6/Garrison | Garrison Relay disabled 24210 | -6/Garrison | Triggered checkpoint 24283 | -6/Garrison | Garrison Relay disabled 25442 | -6/Garrison | Triggered checkpoint 25796 | -6/Garrison | Triggered checkpoint 25842 | -6/Garrison | Triggered checkpoint 25982 | -6/Garrison | Garrison Relay disabled 26087 | -6/Garrison | Garrison Relay disabled 26510 | -6/Garrison | Triggered checkpoint 27331 | -6/Garrison | Entered Factory 27331 | -5/Factory | Accompanied by 4 allies 27331 | -5/Factory | Evolved 2 slots: Power x1, Utility x1 27631 | -5/Factory | First assault squad dispatched 28192 | -5/Factory | Destroyed 8 combat bots 28307 | -5/Factory | Repaired Proton Cannon 28464 | -5/Factory | Destroyed 9 combat bots 28543 | -5/Factory | Discovered new exit (range 4) 28568 | -5/Factory | Sucked down chute 28568 | -5/Factory | Entered Waste 28569 | -5/Waste | Met a frightened Derelict 28583 | -5/Waste | EMP discharged 28583 | -5/Waste | System corruption reached 10% 28617 | -5/Waste | Spotted C-40 Crusher 28650 | -5/Waste | Destroyed C-40 Crusher 28652 | -5/Waste | Spotted C-40 Crusher 28675 | -5/Waste | Found Damper Plating 28676 | -5/Waste | Spotted C-40 Crusher 28683 | -5/Waste | EMP discharged 28689 | -5/Waste | Spotted C-40 Crusher 28732 | -5/Waste | Allies destroyed C-40 Crusher 28742 | -5/Waste | Spotted C-40 Crusher 28783 | -5/Waste | EMP discharged 28797 | -5/Waste | Spotted C-40 Crusher 28810 | -5/Waste | Allies destroyed C-40 Crusher 28858 | -5/Waste | Destroyed C-40 Crusher 28878 | -5/Waste | Destroyed C-40 Crusher 28883 | -5/Waste | EMP discharged 28973 | -5/Waste | Destroyed C-40 Crusher 28983 | -5/Waste | EMP discharged 29071 | -5/Waste | Discovered new exit (range 11) 29083 | -5/Waste | EMP discharged 29100 | -5/Waste | Entered Factory 29369 | -5/Factory | Discovered new exit (range 7) 30026 | -5/Factory | Fabricated Graphene Brace? 30160 | -5/Factory | Destroyed 9 combat bots 30532 | -5/Factory | Identified exit to Garrison 30532 | -5/Factory | Entered Garrison 30896 | -5/Garrison | Triggered checkpoint 30951 | -5/Garrison | Garrison Relay disabled 31092 | -5/Garrison | Triggered checkpoint 31092 | -5/Garrison | Triggered checkpoint 31261 | -5/Garrison | Build established: Bothacker-Mutant 31585 | -5/Garrison | Discovered new exit (range 15) 31630 | -5/Garrison | Expanded RIF knowledge: Autooverride 31778 | -5/Garrison | Discovered new exit (range 12) 31918 | -5/Garrison | Build established: Botlord-Mutant 31983 | -5/Garrison | Triggered checkpoint 32052 | -5/Garrison | Garrison Relay disabled 32683 | -5/Garrison | Found Quantum Capacitor 32916 | -5/Garrison | Triggered checkpoint 32981 | -5/Garrison | Build established: Bothacker-Mutant 32991 | -5/Garrison | Garrison Relay disabled 33361 | -5/Garrison | Triggered checkpoint 33751 | -5/Garrison | Garrison Relay disabled 34577 | -5/Garrison | Build established: Botlord-Mutant 35316 | -5/Garrison | Entered Factory 35316 | -4/Factory | Accompanied by 5 allies 35316 | -4/Factory | Evolved 2 slots: Power x1, Utility x1 35684 | -4/Factory | P-70 Sage assimilated allied Chaingunner 6a 36532 | -4/Factory | Found Quantum Capacitor 36535 | -4/Factory | Sucked down chute 36535 | -4/Factory | Entered Waste 36536 | -4/Waste | Joined by Warlord forces that had cleared the area 36608 | -4/Waste | Found Damper Plating 36711 | -4/Waste | Found Damper Plating 36944 | -4/Waste | Build established: Bothacker-Mutant 37153 | -4/Waste | Discovered new exit (range 16) 37326 | -4/Waste | Found Damper Plating 37517 | -4/Waste | Entered Factory 37517 | -4/Factory | Accompanied by 19 allies 37801 | -4/Factory | First assault squad dispatched 37823 | -4/Factory | Identified exit to Garrison 37825 | -4/Factory | Entered Garrison 37825 | -4/Garrison | Accompanied by 12 allies 37941 | -4/Garrison | Triggered checkpoint 38325 | -4/Garrison | Discovered new exit (range 8) 38356 | -4/Garrison | Triggered checkpoint 38477 | -4/Garrison | Garrison Relay disabled 38778 | -4/Garrison | Build established: Botlord-Mutant 38788 | -4/Garrison | Triggered checkpoint 38908 | -4/Garrison | Discovered new exit (range 10) 39128 | -4/Garrison | Discovered new exit (range 10) 39167 | -4/Garrison | Expanded RIF knowledge: Program Shield 39354 | -4/Garrison | Triggered checkpoint 39413 | -4/Garrison | Garrison Relay disabled 40117 | -4/Garrison | Entered Research 40117 | -3/Research | Evolved 2 slots: Propulsion x2 40225 | -3/Research | Found Antimissile System 40407 | -3/Research | Repaired Imp. Heavy Armor Plating 40673 | -3/Research | Garrison activated, responded to threat 40867 | -3/Research | First assault squad dispatched 41237 | -3/Research | Build established: Bothacker-Mutant 41471 | -3/Research | Found Exp. Terrain Scan Processor 41476 | -3/Research | Found Spectral Analyzer 41496 | -3/Research | Found Spectral Analyzer 41503 | -3/Research | Discovered new exit (range 15) 41738 | -3/Research | Cargo convoy interrupted 41742 | -3/Research | Found Prototype Launcher 41742 | -3/Research | Identified Tactical Quantum Warhead 41906 | -3/Research | Entered Testing 41930 | -3/Testing | Protovariant out of control (PH-0YGIA2N9LZ) 42709 | -3/Testing | Discovered new exit (range 15) 42885 | -3/Testing | Build established: Generator-Mutant 42911 | -3/Testing | Found Prototype Energy Cannon 43998 | -3/Testing | Identified exit to Garrison 43998 | -3/Testing | Entered Garrison 44007 | -3/Garrison | Expanded RIF knowledge: Robot Detection 44023 | -3/Garrison | Identified Imp. Potential Cannon 44075 | -3/Garrison | Spotted B-86 Titan 44079 | -3/Garrison | Triggered checkpoint 44079 | -3/Garrison | Triggered checkpoint 44299 | -3/Garrison | Build established: Botlord-Mutant 44382 | -3/Garrison | Triggered checkpoint 44469 | -3/Garrison | Discovered new exit (range 14) 44797 | -3/Garrison | Build established: Bothacker-Mutant 44822 | -3/Garrison | Triggered checkpoint 44867 | -3/Garrison | Garrison Relay disabled 45014 | -3/Garrison | Triggered checkpoint 45231 | -3/Garrison | Build established: Botlord-Mutant 45291 | -3/Garrison | Discovered new exit (range 9) 45336 | -3/Garrison | Triggered checkpoint 45422 | -3/Garrison | Garrison Relay disabled 45662 | -3/Garrison | Build established: Generator-Mutant 45918 | -3/Garrison | Entered Research 45918 | -2/Research | Evolved 2 slots: Utility x2 46025 | -2/Research | Found Launcher Loader 46168 | -2/Research | First assault squad dispatched 46725 | -2/Research | Discovered new exit (range 15) 47117 | -2/Research | Build established: Botlord-Mutant 47294 | -2/Research | Spotted B-90 Cyclops 47465 | -2/Research | Identified exit to Quarantine 48329 | -2/Research | Entered Quarantine 48502 | -2/Quarantine | Found Alien Artifact 48502 | -2/Quarantine | Identified Phase Armor 48584 | -2/Quarantine | Found Alien Artifact 49021 | -2/Quarantine | Met incapacitated Sigix Warrior 49021 | -2/Quarantine | Lockdown squad dispatched 49087 | -2/Quarantine | Spotted Alpha 7 49115 | -2/Quarantine | Destroyed Alpha 7 49132 | -2/Quarantine | Spotted Lightning 49134 | -2/Quarantine | Spotted Lightning 49136 | -2/Quarantine | Spotted Lightning 49172 | -2/Quarantine | Destroyed Lightning 49186 | -2/Quarantine | Destroyed Lightning 49190 | -2/Quarantine | Destroyed Lightning 49199 | -2/Quarantine | Found Exp. Targeting Computer 49248 | -2/Quarantine | Destroyed 12 combat bots 49283 | -2/Quarantine | Found Alien Launcher 49398 | -2/Quarantine | Found Alien Artifact 49404 | -2/Quarantine | Found Alien Artifact 49564 | -2/Quarantine | P-80 Master assimilated allied Artificer 9a 49696 | -2/Quarantine | Build established: Bothacker-Mutant 49717 | -2/Quarantine | Discovered new exit (range 20) 49756 | -2/Quarantine | Identified Core Reset Matrix 49756 | -2/Quarantine | Identified Sigix Terminator 49973 | -2/Quarantine | Found Alien Impact Weapon 50041 | -2/Quarantine | Cryocooling Duct disabled 50049 | -2/Quarantine | Cryocooling Duct disabled 50056 | -2/Quarantine | Ambient heat levels rising (+20) 50056 | -2/Quarantine | Non-combat units ordered to evacuate 50064 | -2/Quarantine | Ambient heat levels rising (+20) 50064 | -2/Quarantine | Combat units ordered to evacuate 50069 | -2/Quarantine | Identified Core Stripper 50090 | -2/Quarantine | Spotted Fortress 50113 | -2/Quarantine | Destroyed Fortress 50129 | -2/Quarantine | Found Prototype Device 50129 | -2/Quarantine | Identified Thermal Barrier 50138 | -2/Quarantine | Found Exp. EM Disruption Field 50143 | -2/Quarantine | Found Antimissile System 50151 | -2/Quarantine | Found Prototype Protection 50151 | -2/Quarantine | Identified Centrium Heavy Armor Plating 50157 | -2/Quarantine | Found Prototype Reactor 50157 | -2/Quarantine | Identified Vortex Chain Reactor 50164 | -2/Quarantine | Quarantine Guard activated 50192 | -2/Quarantine | Found Prototype Device 50192 | -2/Quarantine | Identified Exp. Force Field 50305 | -2/Quarantine | Discovered new exit (range 5) 50400 | -2/Quarantine | Spotted Quarantine Guard 50409 | -2/Quarantine | Destroyed Quarantine Guard 51282 | -2/Quarantine | Spotted Quarantine Guard 51290 | -2/Quarantine | Destroyed Quarantine Guard 51575 | -2/Quarantine | Spotted Quarantine Guard 51592 | -2/Quarantine | Spotted Quarantine Guard 51593 | -2/Quarantine | Destroyed Quarantine Guard 51599 | -2/Quarantine | Destroyed Quarantine Guard 52146 | -2/Quarantine | Spotted Quarantine Guard 52153 | -2/Quarantine | Destroyed Quarantine Guard 53337 | -2/Quarantine | Entered Section 7 53734 | -2/Section 7 | Found Alien Artifact 53833 | -2/Section 7 | Identified Integrated Dissipator 53835 | -2/Section 7 | Installed Integrated Dissipator, increased core heat dissipation (+20) 53854 | -2/Section 7 | Spotted S7 Guard 53863 | -2/Section 7 | Found Alien Artifact 53871 | -2/Section 7 | Destroyed S7 Guard 53880 | -2/Section 7 | Found Prototype Protection 53880 | -2/Section 7 | Identified Hvy. Regenerative Plating 54028 | -2/Section 7 | Spotted S7 Guard 54065 | -2/Section 7 | Destroyed S7 Guard 54124 | -2/Section 7 | Identified Transdimensional Reconstructor 54124 | -2/Section 7 | Identified Hpw. Transdimensional Reconstructor 54124 | -2/Section 7 | Identified Core Physics Calibrator 54135 | -2/Section 7 | Found Core Regenerator 54504 | -2/Section 7 | Found Alien Artifact 54542 | -2/Section 7 | Identified Integrated Mediator 54542 | -2/Section 7 | Installed Integrated Mediator, increased core attachment efficiency. 54600 | -2/Section 7 | Spotted S7 Guard 54610 | -2/Section 7 | Found Alien Artifact 54630 | -2/Section 7 | Destroyed S7 Guard 54722 | -2/Section 7 | Identified Integrated Thermoelectric Network 54742 | -2/Section 7 | Installed Integrated Thermoelectric Network, gained heat-energy exchange potential 54766 | -2/Section 7 | Build established: Generator-Mutant 55111 | -2/Section 7 | Build established: Botlord-Mutant 55201 | -2/Section 7 | Spotted Executioner 55201 | -2/Section 7 | Spotted Executioner 55221 | -2/Section 7 | Destroyed Executioner 55243 | -2/Section 7 | Destroyed Executioner 55254 | -2/Section 7 | Found Exp. Core Analyzer 55445 | -2/Section 7 | Spotted Striker 55445 | -2/Section 7 | Spotted Striker 55481 | -2/Section 7 | Found Alien Energy Gun 55481 | -2/Section 7 | Identified Sigix Sheargun 55493 | -2/Section 7 | Found Sigix Sheargun 55527 | -2/Section 7 | Build established: Bothacker-Mutant 55631 | -2/Section 7 | Spotted B-99 Colossus 55755 | -2/Section 7 | Found Alien Artifact 55755 | -2/Section 7 | Identified LRC Insulator 55755 | -2/Section 7 | Installed LRC Insulator, gained EM resistance (25) 55758 | -2/Section 7 | Found LRC Insulator 55758 | -2/Section 7 | Installed LRC Insulator, gained EM resistance (25) 55964 | -2/Section 7 | Destroyed B-99 Colossus 56001 | -2/Section 7 | Found Prototype Ballistic Gun 56006 | -2/Section 7 | Found Prototype Ballistic Gun 56006 | -2/Section 7 | Identified Multirail (x2) 56223 | -2/Section 7 | Discovered new exit (range 20) 56254 | -2/Section 7 | Identified exit to Garrison 56254 | -2/Section 7 | Entered Garrison 56263 | -2/Garrison | Expanded RIF knowledge: Hotswap 56582 | -2/Garrison | Triggered checkpoint 56671 | -2/Garrison | Garrison Relay disabled 57126 | -2/Garrison | Spotted B-90 Cyclops 57393 | -2/Garrison | Discovered new exit (range 12) 57619 | -2/Garrison | Triggered checkpoint 58173 | -2/Garrison | Entered Access 58173 | -1/Access | Evolved 2 slots: Power x1, Weapon x1 59423 | -1/Access | First assault squad dispatched 59666 | -1/Access | Identified exit to Command 59814 | -1/Access | Discovered new exit (range 24) 60010 | -1/Access | Entered Command 60206 | -1/Command | Spotted B-99 Colossus 60551 | -1/Command | First assault squad dispatched 60769 | -1/Command | Spotted B-99 Colossus 60773 | -1/Command | Destroyed 9 combat bots 60796 | -1/Command | Assimilated B-99 Colossus with FLK Orb 61089 | -1/Command | Build established: Generator-Mutant 61094 | -1/Command | Crushed by falling debris 61336 | -1/Command | Assimilated B-99 Colossus with FLK Orb 61605 | -1/Command | Spotted Combat Programmer 61607 | -1/Command | Spotted Combat Programmer 61614 | -1/Command | Spotted M Guard 61614 | -1/Command | Spotted M Guard 61630 | -1/Command | Destroyed M Guard 61639 | -1/Command | Found Prototype Reactor 61639 | -1/Command | Identified Zero-point Reactor 61651 | -1/Command | Destroyed M Guard 61659 | -1/Command | Found Prototype Device 61659 | -1/Command | Identified AEGIS Remote Shield 61668 | -1/Command | Found Zero-point Reactor 61675 | -1/Command | Lost 3 parts (2p1u) 61679 | -1/Command | Found Zero-point Reactor 61690 | -1/Command | Destroyed Combat Programmer 61693 | -1/Command | Destroyed Combat Programmer 61693 | -1/Command | All MAIN.C guards destroyed 61723 | -1/Command | Found Exp. Targeting Computer 61735 | -1/Command | Found Prototype Launcher 61749 | -1/Command | Found Prototype Energy Cannon 61749 | -1/Command | Identified Cld. Nova Cannon 61988 | -1/Command | Met MAIN.C 61995 | -1/Command | 0b10 Conduit disabled 62021 | -1/Command | Allies destroyed MAIN.C Shell 62022 | -1/Command | MAIN.C activated Command garrisons 62053 | -1/Command | Destroyed MAIN.C 62076 | -1/Command | Discovered new exit (range 28) 62076 | -1/Command | Discovered new exit (range 91) 62076 | -1/Command | Identified Hellfire Missile Launcher 62076 | -1/Command | Extracted map data and part IDs from MAIN.C's data core 62354 | -1/Command | Found Z-bomb Delivery System 62367 | -1/Command | Found Exp. System Purifier 63631 | -1/Command | Phase Generator disabled 63916 | -1/Command | Found Exp. Targeting Computer 65246 | -1/Command | Found Vortex Chain Reactor 65250 | -1/Command | Found Zero-point Reactor 65272 | -1/Command | Used Core Regenerator, restored core integrity (+175) 65295 | -1/Command | Build established: Generator-Gunner 66122 | -1/Command | Warped through subspace to slip node 66122 | -1/Command | Discovered new exit (range 4) 66125 | -1/Command | Found Exp. Targeting Computer 66129 | -1/Command | Entered Access_0 66130 | -1/Access_0 | Met Architect 66130 | -1/Access_0 | Assimilated A8 with FLK Orb 66136 | -1/Access_0 | Architect warped through subspace 66210 | -1/Access_0 | Architect warped through subspace 66288 | -1/Access_0 | Architect warped through subspace 66355 | -1/Access_0 | Subspace Access Node disabled 66374 | -1/Access_0 | A6 warped into view 66394 | -1/Access_0 | Destroyed A6 66402 | -1/Access_0 | Architect warped through subspace 66430 | -1/Access_0 | Architect warped through subspace 66485 | -1/Access_0 | Build established: Generator-Mutant 66499 | -1/Access_0 | Architect warped through subspace 66525 | -1/Access_0 | Architect warped through subspace 66579 | -1/Access_0 | Architect warped through subspace 66588 | -1/Access_0 | Architect warped through subspace 66600 | -1/Access_0 | Subspace Access Node disabled 66632 | -1/Access_0 | Architect warped through subspace 66681 | -1/Access_0 | A5 warped into view 66682 | -1/Access_0 | Assimilated A5 with FLK Orb 66684 | -1/Access_0 | Destroyed A5 66700 | -1/Access_0 | Subspace Access Node disabled 66703 | -1/Access_0 | Architect warped through subspace 66714 | -1/Access_0 | Found Med. Regenerative Plating 66747 | -1/Access_0 | Architect warped through subspace 66771 | -1/Access_0 | Subspace Access Node disabled 66788 | -1/Access_0 | Destroyed Architect 66789 | -1/Access_0 | Architect triggered a singularity event 66790 | -1/Access_0 | Warped through subspace to slip node 66790 | -1/Access_0 | Discovered new exit (range 8) 66791 | -1/Access_0 | Released all parts (19) 66794 | *** | Escaped singularity! Last Messages --------------- 66791_ Released Exp. Core Analyzer. 66791_ Released Imp. Armor Integrity Analyzer. 66791_ Released Hvy. Regenerative Plating. 66791_ Hvy. Regenerative Plating crushed and broken. 66791_ Released Exp. Targeting Computer. 66791_ Released Vortex Chain Reactor. 66791_ Vortex Chain Reactor crushed and broken. 66791_ Released Imp. Potential Cannon. 66791_ Imp. Potential Cannon crushed and broken. 66791_ Released Adv. Heavy Treads. 66791_ Adv. Heavy Treads crushed and broken. 66791_ Released Imp. Quantum Reactor. 66791_ Imp. Quantum Reactor crushed and broken. 66791_ Released Med. Regenerative Plating. 66791_ Med. Regenerative Plating crushed and broken. 66791_ Released Exp. Biometal Medium Treads. 66791_ Exp. Biometal Medium Treads crushed and broken. 66792_ A0_COM: 8. 66793_ A0_COM: 7. 66794_ A0_COM: 6. Map ----- +----------------------------------------------------+ | | | | | | | | | | | | | | | | | | | | | | | | | | | | | | | | | ?????????????????????????????????????????????????? | | ?????????????????????????????????????????????????? | | ?????????????????????????????????????????????????? | | ?????????????????????????????????????????????????? | | ?????????????????????????????????????????????????? | | ?????????????????????????????????????????????????? | | ????????????????????????###??????????????????????? | | ???????????????????????## ##?????????????????????? | | ???????????????????????# #?????????????????????? | | ???????????????????????# @ #?????????????????????? | | ??????????????????????## #?????????????????????? | | ??????????????????????# ! #?????????????????????? | | ??????????????????????#*!!##?????????????????????? | | ??????????????????????##!*!#?????????????????????? | | ??????????????????????#!!!]#?????????????????????? | | ??????????????????????#=*!##?????????????????????? | | ??????????????????????#=!!!#?????????????????????? | | ??????????????????????#]|!##?????????????????????? | | ??????????????????????##*]#??????????????????????? | | ???????????????????????####??????????????????????? | | ?????????????????????????????????????????????????? | | ?????????????????????????????????????????????????? | | ?????????????????????????????????????????????????? | | ?????????????????????????????????????????????????? | | ?????????????????????????????????????????????????? | | ?????????????????????????????????????????????????? | | ?????????????????????????????????????????????????? | | ?????????????????????????????????????????????????? | | ?????????????????????????????????????????????????? | | ?????????????????????????????????????????????????? | | ?????????????????????????????????????????????????? | | ?????????????????????????????????????????????????? | | ?????????????????????????????????????????????????? | | ?????????????????????????????????????????????????? | +----------------------------------------------------+ Best States ------------- Heat Dissipation 125 Coolant Potential 100 Energy Generation 147 Energy Capacity 2450 Matter Stores 300 Matter Capacity 300 Sight Range 16 Robot Scan Range 16 Terrain Scan Range 24 Terrain Scan Density 1010 Jamming Range 14 Power Amplification 40 Armor Coverage 3200 Resistance: KI 30 Resistance: TH 50 Resistance: EM 100 Weapon Shielding 90 Point Defense Rating 240 Weapon Cycling 25 Phase Shifting 15 Evasion (%) 55 Targeting Accuracy 24 Core Analysis 8 Armor Integrity Analysis 40 Recoil Reduction 6 Relay Coupler Types 4 Relay Coupler Value 70 Item Schematics ----------------- Huge Storage Unit | -10/Materials | Hacked Lrn. Phase Cannon | -3/Testing | Archive Plasma Sword | -3/Testing | Archive Adv. Energy Well | -2/Quarantine | Archive Exp. Energy Well | -2/Quarantine | Archive Prc. Energy Filter | -2/Quarantine | Archive Com. Linear Accelerator | -2/Section 7 | Archive Exp. Actuator Array | -2/Section 7 | Archive Imp. Matter Neutralizer | -2/Section 7 | Archive Robot Schematics ------------------ L-61 Swordsman | -3/Testing | Archive E-15 Imp | -3/Testing | Archive A-02 Transporter | -2/Quarantine | Archive K-01 Serf | -2/Quarantine | Archive C-65 Expert | -2/Section 7 | Archive Fabricated ------------ Graphene Brace | x2 | -5/Factory | Preloaded Alien Tech Used ----------------- Phase Armor Core Stripper Integrated Dissipator Integrated Mediator Integrated Thermoelectric Network Sigix Sheargun LRC Insulator Core Regenerator Transdimensional Reconstructor High-powered Transdimensional Reconstructor Achievements -------------- None Challenges ------------ None Game ------ Seed NeutrinoMiningStripper Manual? 0 Play Time 07:30:17 Cumulative 693.9 hours Start 2022.04.15 @ 09:15:02 End 2022.04.15 @ 19:02:48 Sessions 1 Manual Loads 0 Difficulty Rogue Special Mode None Game No. 306 Rogue 305 Adventurer 1 Explorer 0 Win Type 6 Total 76 Types 23/9/11/3/2/1/26/1/0 Lore% 98 Gallery% 99 Achievement% 89 Wizard Run 0 Options --------- ASCII 1 Keyboard 1 Movement Numpad Keybinds 0 Fullscreen 0 Font 18/Smallcaps Map View 76x50 Tactical HUD 1 Map Filters NONE Filters NONE Steam 1 RUN: 10e80bdf-3b1c-4657-b212-f28097afc6b3